Workbook

Sheet Chart
B2: ='NLE11'!AJ181 -> PHI | C2: ='NLE11'!AK181 -> 0 | D2: ='NLE11'!AL181 -> 0.6296296296
B3: ='NLE11'!AJ182 -> ATL | C3: ='NLE11'!AK182 -> 13 | D3: ='NLE11'!AL182 -> 0.549382716
B4: ='NLE11'!AJ183 -> WSH | C4: ='NLE11'!AK183 -> 21.5 | D4: ='NLE11'!AL183 -> 0.4968944099
B5: ='NLE11'!AJ184 -> NYM | C5: ='NLE11'!AK184 -> 25 | D5: ='NLE11'!AL184 -> 0.475308642
B6: ='NLE11'!AJ185 -> FLA | C6: ='NLE11'!AK185 -> 30 | D6: ='NLE11'!AL185 -> 0.4444444444
B11: MLB.mobi Scores
B14: PHP Results
B17: HTML Results
F38: Note: You must enable macros for this workbook to update correctly

Sheet NLE11
A1: NLE11 | B1: ATL | C1: W | D1: L | F1: FLA | G1: W | H1: L | J1: NYM | K1: W | L1: L | N1: PHI | O1: W | P1: L | R1: WSH | S1: W | T1: L | W1: =B1 -> ATL | X1: =F1 -> FLA | Y1: =J1 -> NYM | Z1: =N1 -> PHI | AA1: =R1 -> WSH | AC1: =W1 -> ATL | AD1: =X1 -> FLA | AE1: =Y1 -> NYM | AF1: =Z1 -> PHI | AG1: =AA1 -> WSH
A2: 2011-03-30 | C2: 0 | D2: 0 | G2: 0 | H2: 0 | K2: 0 | L2: 0 | O2: 0 | P2: 0 | S2: 0 | T2: 0 | W2: 0 | X2: 0 | Y2: 0 | Z2: 0 | AA2: 0 | AC2: 0 | AD2: 0 | AE2: 0 | AF2: 0 | AG2: 0
A3: 2011-03-31 | B3: 1 | C3: =C2+IF(B3>0,B3,0) -> 1 | D3: =D2-IF(B3<0,B3,0) -> 0 | G3: =G2+IF(F3>0,F3,0) -> 0 | H3: =H2-IF(F3<0,F3,0) -> 0 | K3: =K2+IF(J3>0,J3,0) -> 0 | L3: =L2-IF(J3<0,J3,0) -> 0 | O3: =O2+IF(N3>0,N3,0) -> 0 | P3: =P2-IF(N3<0,N3,0) -> 0 | R3: -1 | S3: =S2+IF(R3>0,R3,0) -> 0 | T3: =T2-IF(R3<0,R3,0) -> 1 | W3: =C3-D3 -> 1 | X3: =G3-H3 -> 0 | Y3: =K3-L3 -> 0 | Z3: =O3-P3 -> 0 | AA3: =S3-T3 -> -1 | AC3: =(MAX($W3:$AA3)-W3)/2 -> 0 | AD3: =(MAX($W3:$AA3)-X3)/2 -> 0.5 | AE3: =(MAX($W3:$AA3)-Y3)/2 -> 0.5 | AF3: =(MAX($W3:$AA3)-Z3)/2 -> 0.5 | AG3: =(MAX($W3:$AA3)-AA3)/2 -> 1
A4: 2011-04-01 | C4: 1 | D4: 0 | F4: 1 | G4: 1 | H4: 0 | J4: -1 | K4: 0 | L4: 1 | N4: 1 | O4: 1 | P4: 0 | S4: 0 | T4: 1 | W4: =C4-D4 -> 1 | X4: =G4-H4 -> 1 | Y4: =K4-L4 -> -1 | Z4: =O4-P4 -> 1 | AA4: =S4-T4 -> -1 | AC4: =(MAX($W4:$AA4)-W4)/2 -> 0 | AD4: =(MAX($W4:$AA4)-X4)/2 -> 0 | AE4: =(MAX($W4:$AA4)-Y4)/2 -> 1 | AF4: =(MAX($W4:$AA4)-Z4)/2 -> 0 | AG4: =(MAX($W4:$AA4)-AA4)/2 -> 1
A5: 2011-04-02 | B5: -1 | C5: 1 | D5: 1 | F5: -1 | G5: 1 | H5: 1 | J5: 1 | K5: 1 | L5: 1 | N5: 1 | O5: 2 | P5: 0 | R5: 1 | S5: 1 | T5: 1 | W5: =C5-D5 -> 0 | X5: =G5-H5 -> 0 | Y5: =K5-L5 -> 0 | Z5: =O5-P5 -> 2 | AA5: =S5-T5 -> 0 | AC5: =(MAX($W5:$AA5)-W5)/2 -> 1 | AD5: =(MAX($W5:$AA5)-X5)/2 -> 1 | AE5: =(MAX($W5:$AA5)-Y5)/2 -> 1 | AF5: =(MAX($W5:$AA5)-Z5)/2 -> 0 | AG5: =(MAX($W5:$AA5)-AA5)/2 -> 1
A6: 2011-04-03 | B6: 1 | C6: 2 | D6: 1 | F6: -1 | G6: 1 | H6: 2 | J6: 1 | K6: 2 | L6: 1 | N6: 1 | O6: 3 | P6: 0 | R6: -1 | S6: 1 | T6: 2 | W6: =C6-D6 -> 1 | X6: =G6-H6 -> -1 | Y6: =K6-L6 -> 1 | Z6: =O6-P6 -> 3 | AA6: =S6-T6 -> -1 | AC6: =(MAX($W6:$AA6)-W6)/2 -> 1 | AD6: =(MAX($W6:$AA6)-X6)/2 -> 2 | AE6: =(MAX($W6:$AA6)-Y6)/2 -> 1 | AF6: =(MAX($W6:$AA6)-Z6)/2 -> 0 | AG6: =(MAX($W6:$AA6)-AA6)/2 -> 2
A7: 2011-04-04 | B7: 1 | C7: 3 | D7: 1 | G7: 1 | H7: 2 | K7: 2 | L7: 1 | O7: 3 | P7: 0 | S7: 1 | T7: 2 | W7: =C7-D7 -> 2 | X7: =G7-H7 -> -1 | Y7: =K7-L7 -> 1 | Z7: =O7-P7 -> 3 | AA7: =S7-T7 -> -1 | AC7: =(MAX($W7:$AA7)-W7)/2 -> 0.5 | AD7: =(MAX($W7:$AA7)-X7)/2 -> 2 | AE7: =(MAX($W7:$AA7)-Y7)/2 -> 1 | AF7: =(MAX($W7:$AA7)-Z7)/2 -> 0 | AG7: =(MAX($W7:$AA7)-AA7)/2 -> 2
A8: 2011-04-05 | B8: -1 | C8: 3 | D8: 2 | F8: 1 | G8: 2 | H8: 2 | J8: 1 | K8: 3 | L8: 1 | N8: -1 | O8: 3 | P8: 1 | R8: -1 | S8: 1 | T8: 3 | W8: =C8-D8 -> 1 | X8: =G8-H8 -> 0 | Y8: =K8-L8 -> 2 | Z8: =O8-P8 -> 2 | AA8: =S8-T8 -> -2 | AC8: =(MAX($W8:$AA8)-W8)/2 -> 0.5 | AD8: =(MAX($W8:$AA8)-X8)/2 -> 1 | AE8: =(MAX($W8:$AA8)-Y8)/2 -> 0 | AF8: =(MAX($W8:$AA8)-Z8)/2 -> 0 | AG8: =(MAX($W8:$AA8)-AA8)/2 -> 2
A9: 2011-04-06 | B9: -1 | C9: 3 | D9: 3 | F9: 1 | G9: 3 | H9: 2 | J9: -1 | K9: 3 | L9: 2 | N9: 1 | O9: =O8+IF(N9>0,N9,0) -> 4 | P9: 1 | R9: -1 | S9: 1 | T9: 4 | W9: =C9-D9 -> 0 | X9: =G9-H9 -> 1 | Y9: =K9-L9 -> 1 | Z9: =O9-P9 -> 3 | AA9: =S9-T9 -> -3 | AC9: =(MAX($W9:$AA9)-W9)/2 -> 1.5 | AD9: =(MAX($W9:$AA9)-X9)/2 -> 1 | AE9: =(MAX($W9:$AA9)-Y9)/2 -> 1 | AF9: =(MAX($W9:$AA9)-Z9)/2 -> 0 | AG9: =(MAX($W9:$AA9)-AA9)/2 -> 3
A10: 2011-04-07 | B10: -1 | C10: 3 | D10: 4 | F10: -1 | G10: 3 | H10: 3 | J10: -1 | K10: 3 | L10: 3 | N10: 1 | O10: 5 | P10: 1 | R10: 1 | S10: 2 | T10: 4 | W10: =C10-D10 -> -1 | X10: =G10-H10 -> 0 | Y10: =K10-L10 -> 0 | Z10: =O10-P10 -> 4 | AA10: =S10-T10 -> -2 | AC10: =(MAX($W10:$AA10)-W10)/2 -> 2.5 | AD10: =(MAX($W10:$AA10)-X10)/2 -> 2 | AE10: =(MAX($W10:$AA10)-Y10)/2 -> 2 | AF10: =(MAX($W10:$AA10)-Z10)/2 -> 0 | AG10: =(MAX($W10:$AA10)-AA10)/2 -> 3
A11: 2011-04-08 | B11: 1 | C11: 4 | D11: 4 | F11: 1 | G11: 4 | H11: 3 | J11: -1 | K11: 3 | L11: 4 | N11: -1 | O11: 5 | P11: 2 | R11: 1 | S11: 3 | T11: 4 | W11: =C11-D11 -> 0 | X11: =G11-H11 -> 1 | Y11: =K11-L11 -> -1 | Z11: =O11-P11 -> 3 | AA11: =S11-T11 -> -1 | AC11: =(MAX($W11:$AA11)-W11)/2 -> 1.5 | AD11: =(MAX($W11:$AA11)-X11)/2 -> 1 | AE11: =(MAX($W11:$AA11)-Y11)/2 -> 2 | AF11: =(MAX($W11:$AA11)-Z11)/2 -> 0 | AG11: =(MAX($W11:$AA11)-AA11)/2 -> 2
A12: 2011-04-09 | B12: -1 | C12: 4 | D12: 5 | F12: 1 | G12: 5 | H12: 3 | J12: 1 | K12: 4 | L12: 4 | N12: 1 | O12: 6 | P12: 2 | R12: -1 | S12: 3 | T12: 5 | W12: =C12-D12 -> -1 | X12: =G12-H12 -> 2 | Y12: =K12-L12 -> 0 | Z12: =O12-P12 -> 4 | AA12: =S12-T12 -> -2 | AC12: =(MAX($W12:$AA12)-W12)/2 -> 2.5 | AD12: =(MAX($W12:$AA12)-X12)/2 -> 1 | AE12: =(MAX($W12:$AA12)-Y12)/2 -> 2 | AF12: =(MAX($W12:$AA12)-Z12)/2 -> 0 | AG12: =(MAX($W12:$AA12)-AA12)/2 -> 3
A13: 2011-04-10 | B13: -1 | C13: 4 | D13: 6 | F13: -1 | G13: 5 | H13: 4 | J13: -1 | K13: 4 | L13: 5 | N13: 1 | O13: 7 | P13: 2 | R13: 1 | S13: 4 | T13: 5 | W13: =C13-D13 -> -2 | X13: =G13-H13 -> 1 | Y13: =K13-L13 -> -1 | Z13: =O13-P13 -> 5 | AA13: =S13-T13 -> -1 | AC13: =(MAX($W13:$AA13)-W13)/2 -> 3.5 | AD13: =(MAX($W13:$AA13)-X13)/2 -> 2 | AE13: =(MAX($W13:$AA13)-Y13)/2 -> 3 | AF13: =(MAX($W13:$AA13)-Z13)/2 -> 0 | AG13: =(MAX($W13:$AA13)-AA13)/2 -> 3
A14: 2011-04-11 | C14: 4 | D14: 6 | G14: 5 | H14: 4 | J14: -1 | K14: 4 | L14: 6 | O14: 7 | P14: 2 | S14: 4 | T14: 5 | W14: =C14-D14 -> -2 | X14: =G14-H14 -> 1 | Y14: =K14-L14 -> -2 | Z14: =O14-P14 -> 5 | AA14: =S14-T14 -> -1 | AC14: =(MAX($W14:$AA14)-W14)/2 -> 3.5 | AD14: =(MAX($W14:$AA14)-X14)/2 -> 2 | AE14: =(MAX($W14:$AA14)-Y14)/2 -> 3.5 | AF14: =(MAX($W14:$AA14)-Z14)/2 -> 0 | AG14: =(MAX($W14:$AA14)-AA14)/2 -> 3
A15: 2011-04-12 | B15: 1 | C15: 5 | D15: 6 | F15: -1 | G15: 5 | H15: 5 | K15: 4 | L15: 6 | N15: -1 | O15: 7 | P15: 3 | R15: 1 | S15: 5 | T15: 5 | W15: =C15-D15 -> -1 | X15: =G15-H15 -> 0 | Y15: =K15-L15 -> -2 | Z15: =O15-P15 -> 4 | AA15: =S15-T15 -> 0 | AC15: =(MAX($W15:$AA15)-W15)/2 -> 2.5 | AD15: =(MAX($W15:$AA15)-X15)/2 -> 2 | AE15: =(MAX($W15:$AA15)-Y15)/2 -> 3 | AF15: =(MAX($W15:$AA15)-Z15)/2 -> 0 | AG15: =(MAX($W15:$AA15)-AA15)/2 -> 2
A16: 2011-04-13 | B16: -1 | C16: 5 | D16: 7 | F16: 1 | G16: 6 | H16: 5 | J16: -1 | K16: 4 | L16: 7 | N16: 1 | O16: 8 | P16: 3 | R16: -1 | S16: 5 | T16: 6 | W16: =C16-D16 -> -2 | X16: =G16-H16 -> 1 | Y16: =K16-L16 -> -3 | Z16: =O16-P16 -> 5 | AA16: =S16-T16 -> -1 | AC16: =(MAX($W16:$AA16)-W16)/2 -> 3.5 | AD16: =(MAX($W16:$AA16)-X16)/2 -> 2 | AE16: =(MAX($W16:$AA16)-Y16)/2 -> 4 | AF16: =(MAX($W16:$AA16)-Z16)/2 -> 0 | AG16: =(MAX($W16:$AA16)-AA16)/2 -> 3
A17: 2011-04-14 | B17: -1 | C17: 5 | D17: 8 | F17: 1 | G17: 7 | H17: 5 | J17: -2 | K17: 4 | L17: 9 | N17: 1 | O17: 9 | P17: 3 | R17: -1 | S17: 5 | T17: 7 | W17: =C17-D17 -> -3 | X17: =G17-H17 -> 2 | Y17: =K17-L17 -> -5 | Z17: =O17-P17 -> 6 | AA17: =S17-T17 -> -2 | AC17: =(MAX($W17:$AA17)-W17)/2 -> 4.5 | AD17: =(MAX($W17:$AA17)-X17)/2 -> 2 | AE17: =(MAX($W17:$AA17)-Y17)/2 -> 5.5 | AF17: =(MAX($W17:$AA17)-Z17)/2 -> 0 | AG17: =(MAX($W17:$AA17)-AA17)/2 -> 4
A18: 2011-04-15 | C18: 5 | D18: 8 | F18: 1 | G18: 8 | H18: 5 | K18: 4 | L18: 9 | N18: -1 | O18: 9 | P18: 4 | R18: 1 | S18: 6 | T18: 7 | W18: =C18-D18 -> -3 | X18: =G18-H18 -> 3 | Y18: =K18-L18 -> -5 | Z18: =O18-P18 -> 5 | AA18: =S18-T18 -> -1 | AC18: =(MAX($W18:$AA18)-W18)/2 -> 4 | AD18: =(MAX($W18:$AA18)-X18)/2 -> 1 | AE18: =(MAX($W18:$AA18)-Y18)/2 -> 5 | AF18: =(MAX($W18:$AA18)-Z18)/2 -> 0 | AG18: =(MAX($W18:$AA18)-AA18)/2 -> 3
A19: 2011-04-16 | B19: 2 | C19: 7 | D19: 8 | G19: 8 | H19: 5 | J19: -2 | K19: 4 | L19: 11 | O19: 9 | P19: 4 | S19: 6 | T19: 7 | W19: =C19-D19 -> -1 | X19: =G19-H19 -> 3 | Y19: =K19-L19 -> -7 | Z19: =O19-P19 -> 5 | AA19: =S19-T19 -> -1 | AC19: =(MAX($W19:$AA19)-W19)/2 -> 3 | AD19: =(MAX($W19:$AA19)-X19)/2 -> 1 | AE19: =(MAX($W19:$AA19)-Y19)/2 -> 6 | AF19: =(MAX($W19:$AA19)-Z19)/2 -> 0 | AG19: =(MAX($W19:$AA19)-AA19)/2 -> 3
A20: 2011-04-17 | B20: -1 | C20: 7 | D20: 9 | F20: -1 | G20: 8 | H20: 6 | J20: 1 | K20: 5 | L20: 11 | N20: 1 | O20: 10 | P20: 4 | R20: 2 | S20: 8 | T20: 7 | W20: =C20-D20 -> -2 | X20: =G20-H20 -> 2 | Y20: =K20-L20 -> -6 | Z20: =O20-P20 -> 6 | AA20: =S20-T20 -> 1 | AC20: =(MAX($W20:$AA20)-W20)/2 -> 4 | AD20: =(MAX($W20:$AA20)-X20)/2 -> 2 | AE20: =(MAX($W20:$AA20)-Y20)/2 -> 6 | AF20: =(MAX($W20:$AA20)-Z20)/2 -> 0 | AG20: =(MAX($W20:$AA20)-AA20)/2 -> 2.5
A21: 2011-04-18 | B21: -1 | C21: 7 | D21: 10 | G21: 8 | H21: 6 | K21: 5 | L21: 11 | N21: -1 | O21: 10 | P21: 5 | S21: 8 | T21: 7 | W21: =C21-D21 -> -3 | X21: =G21-H21 -> 2 | Y21: =K21-L21 -> -6 | Z21: =O21-P21 -> 5 | AA21: =S21-T21 -> 1 | AC21: =(MAX($W21:$AA21)-W21)/2 -> 4 | AD21: =(MAX($W21:$AA21)-X21)/2 -> 1.5 | AE21: =(MAX($W21:$AA21)-Y21)/2 -> 5.5 | AF21: =(MAX($W21:$AA21)-Z21)/2 -> 0 | AG21: =(MAX($W21:$AA21)-AA21)/2 -> 2
A22: 2011-04-19 | B22: 1 | C22: 8 | D22: 10 | F22: 1 | G22: 9 | H22: 6 | J22: -1 | K22: 5 | L22: 12 | N22: -1 | O22: 10 | P22: 6 | S22: 8 | T22: 7 | W22: =C22-D22 -> -2 | X22: =G22-H22 -> 3 | Y22: =K22-L22 -> -7 | Z22: =O22-P22 -> 4 | AA22: =S22-T22 -> 1 | AC22: =(MAX($W22:$AA22)-W22)/2 -> 3 | AD22: =(MAX($W22:$AA22)-X22)/2 -> 0.5 | AE22: =(MAX($W22:$AA22)-Y22)/2 -> 5.5 | AF22: =(MAX($W22:$AA22)-Z22)/2 -> 0 | AG22: =(MAX($W22:$AA22)-AA22)/2 -> 1.5
A23: 2011-04-20 | B23: -1 | C23: =C22+IF(B23>0,B23,0) -> 8 | D23: =D22-IF(B23<0,B23,0) -> 11 | F23: 1 | G23: 10 | H23: 6 | J23: -1 | K23: 5 | L23: 13 | N23: 1 | O23: 11 | P23: 6 | R23: 0 | S23: 9 | T23: 8 | W23: =C23-D23 -> -3 | X23: =G23-H23 -> 4 | Y23: =K23-L23 -> -8 | Z23: =O23-P23 -> 5 | AA23: =S23-T23 -> 1 | AC23: =(MAX($W23:$AA23)-W23)/2 -> 4 | AD23: =(MAX($W23:$AA23)-X23)/2 -> 0.5 | AE23: =(MAX($W23:$AA23)-Y23)/2 -> 6.5 | AF23: =(MAX($W23:$AA23)-Z23)/2 -> 0 | AG23: =(MAX($W23:$AA23)-AA23)/2 -> 2
A24: 2011-04-21 | B24: -1 | C24: 8 | D24: 12 | F24: 1 | G24: 11 | H24: 6 | J24: 1 | K24: 6 | L24: 13 | N24: 1 | O24: 12 | P24: 6 | R24: -1 | S24: 9 | T24: 9 | W24: =C24-D24 -> -4 | X24: =G24-H24 -> 5 | Y24: =K24-L24 -> -7 | Z24: =O24-P24 -> 6 | AA24: =S24-T24 -> 0 | AC24: =(MAX($W24:$AA24)-W24)/2 -> 5 | AD24: =(MAX($W24:$AA24)-X24)/2 -> 0.5 | AE24: =(MAX($W24:$AA24)-Y24)/2 -> 6.5 | AF24: =(MAX($W24:$AA24)-Z24)/2 -> 0 | AG24: =(MAX($W24:$AA24)-AA24)/2 -> 3
A25: 2011-04-22 | B25: 1 | C25: 9 | D25: 12 | F25: 1 | G25: 12 | H25: 6 | J25: 1 | K25: 7 | L25: 13 | N25: 1 | O25: 13 | P25: 6 | S25: 9 | T25: 9 | W25: =C25-D25 -> -3 | X25: =G25-H25 -> 6 | Y25: =K25-L25 -> -6 | Z25: =O25-P25 -> 7 | AA25: =S25-T25 -> 0 | AC25: =(MAX($W25:$AA25)-W25)/2 -> 5 | AD25: =(MAX($W25:$AA25)-X25)/2 -> 0.5 | AE25: =(MAX($W25:$AA25)-Y25)/2 -> 6.5 | AF25: =(MAX($W25:$AA25)-Z25)/2 -> 0 | AG25: =(MAX($W25:$AA25)-AA25)/2 -> 3.5
A26: 2011-04-23 | B26: 1 | C26: 10 | D26: 12 | F26: -1 | G26: 12 | H26: 7 | J26: 1 | K26: 8 | L26: 13 | N26: 1 | O26: 14 | P26: 6 | R26: -1 | S26: 9 | T26: 10 | W26: =C26-D26 -> -2 | X26: =G26-H26 -> 5 | Y26: =K26-L26 -> -5 | Z26: =O26-P26 -> 8 | AA26: =S26-T26 -> -1 | AC26: =(MAX($W26:$AA26)-W26)/2 -> 5 | AD26: =(MAX($W26:$AA26)-X26)/2 -> 1.5 | AE26: =(MAX($W26:$AA26)-Y26)/2 -> 6.5 | AF26: =(MAX($W26:$AA26)-Z26)/2 -> 0 | AG26: =(MAX($W26:$AA26)-AA26)/2 -> 4.5
A27: 2011-04-24 | B27: 1 | C27: 11 | D27: 12 | F27: 1 | G27: 13 | H27: 7 | J27: 1 | K27: 9 | L27: 13 | N27: 1 | O27: 15 | P27: 6 | R27: 1 | S27: 10 | T27: 10 | W27: =C27-D27 -> -1 | X27: =G27-H27 -> 6 | Y27: =K27-L27 -> -4 | Z27: =O27-P27 -> 9 | AA27: =S27-T27 -> 0 | AC27: =(MAX($W27:$AA27)-W27)/2 -> 5 | AD27: =(MAX($W27:$AA27)-X27)/2 -> 1.5 | AE27: =(MAX($W27:$AA27)-Y27)/2 -> 6.5 | AF27: =(MAX($W27:$AA27)-Z27)/2 -> 0 | AG27: =(MAX($W27:$AA27)-AA27)/2 -> 4.5
A28: 2011-04-25 | B28: -1 | C28: 11 | D28: 13 | F28: 1 | G28: 14 | H28: 7 | K28: 9 | L28: 13 | N28: -1 | O28: 15 | P28: 7 | R28: -1 | S28: 10 | T28: 11 | W28: =C28-D28 -> -2 | X28: =G28-H28 -> 7 | Y28: =K28-L28 -> -4 | Z28: =O28-P28 -> 8 | AA28: =S28-T28 -> -1 | AC28: =(MAX($W28:$AA28)-W28)/2 -> 5 | AD28: =(MAX($W28:$AA28)-X28)/2 -> 0.5 | AE28: =(MAX($W28:$AA28)-Y28)/2 -> 6 | AF28: =(MAX($W28:$AA28)-Z28)/2 -> 0 | AG28: =(MAX($W28:$AA28)-AA28)/2 -> 4.5
A29: 2011-04-26 | B29: 1 | C29: 12 | D29: 13 | F29: 1 | G29: 15 | H29: 7 | J29: 1 | K29: 10 | L29: 13 | N29: -1 | O29: 15 | P29: 8 | R29: -1 | S29: 10 | T29: 12 | W29: =C29-D29 -> -1 | X29: =G29-H29 -> 8 | Y29: =K29-L29 -> -3 | Z29: =O29-P29 -> 7 | AA29: =S29-T29 -> -2 | AC29: =(MAX($W29:$AA29)-W29)/2 -> 4.5 | AD29: =(MAX($W29:$AA29)-X29)/2 -> 0 | AE29: =(MAX($W29:$AA29)-Y29)/2 -> 5.5 | AF29: =(MAX($W29:$AA29)-Z29)/2 -> 0.5 | AG29: =(MAX($W29:$AA29)-AA29)/2 -> 5
A30: 2011-04-27 | B30: 1 | C30: 13 | D30: 13 | F30: -1 | G30: 15 | H30: 8 | J30: 1 | K30: 11 | L30: 13 | N30: 1 | O30: 16 | P30: 8 | R30: -1 | S30: 10 | T30: 13 | W30: =C30-D30 -> 0 | X30: =G30-H30 -> 7 | Y30: =K30-L30 -> -2 | Z30: =O30-P30 -> 8 | AA30: =S30-T30 -> -3 | AC30: =(MAX($W30:$AA30)-W30)/2 -> 4 | AD30: =(MAX($W30:$AA30)-X30)/2 -> 0.5 | AE30: =(MAX($W30:$AA30)-Y30)/2 -> 5 | AF30: =(MAX($W30:$AA30)-Z30)/2 -> 0 | AG30: =(MAX($W30:$AA30)-AA30)/2 -> 5.5
A31: 2011-04-28 | C31: 13 | D31: 13 | G31: 15 | H31: 8 | J31: -1 | K31: 11 | L31: 14 | O31: 16 | P31: 8 | R31: 1 | S31: 11 | T31: 13 | W31: =C31-D31 -> 0 | X31: =G31-H31 -> 7 | Y31: =K31-L31 -> -3 | Z31: =O31-P31 -> 8 | AA31: =S31-T31 -> -2 | AC31: =(MAX($W31:$AA31)-W31)/2 -> 4 | AD31: =(MAX($W31:$AA31)-X31)/2 -> 0.5 | AE31: =(MAX($W31:$AA31)-Y31)/2 -> 5.5 | AF31: =(MAX($W31:$AA31)-Z31)/2 -> 0 | AG31: =(MAX($W31:$AA31)-AA31)/2 -> 5
A32: 2011-04-29 | B32: -1 | C32: 13 | D32: 14 | F32: 1 | G32: 16 | H32: 8 | J32: -1 | K32: 11 | L32: 15 | N32: 1 | O32: 17 | P32: 8 | R32: 1 | S32: 12 | T32: 13 | W32: =C32-D32 -> -1 | X32: =G32-H32 -> 8 | Y32: =K32-L32 -> -4 | Z32: =O32-P32 -> 9 | AA32: =S32-T32 -> -1 | AC32: =(MAX($W32:$AA32)-W32)/2 -> 5 | AD32: =(MAX($W32:$AA32)-X32)/2 -> 0.5 | AE32: =(MAX($W32:$AA32)-Y32)/2 -> 6.5 | AF32: =(MAX($W32:$AA32)-Z32)/2 -> 0 | AG32: =(MAX($W32:$AA32)-AA32)/2 -> 5
A33: 2011-04-30 | B33: -1 | C33: 13 | D33: 15 | F33: -1 | G33: 16 | H33: 9 | J33: -1 | K33: 11 | L33: 16 | N33: 1 | O33: 18 | P33: 8 | R33: -1 | S33: 12 | T33: 14 | W33: =C33-D33 -> -2 | X33: =G33-H33 -> 7 | Y33: =K33-L33 -> -5 | Z33: =O33-P33 -> 10 | AA33: =S33-T33 -> -2 | AC33: =(MAX($W33:$AA33)-W33)/2 -> 6 | AD33: =(MAX($W33:$AA33)-X33)/2 -> 1.5 | AE33: =(MAX($W33:$AA33)-Y33)/2 -> 7.5 | AF33: =(MAX($W33:$AA33)-Z33)/2 -> 0 | AG33: =(MAX($W33:$AA33)-AA33)/2 -> 6
A34: 2011-05-01 | B34: 1 | C34: 14 | D34: 15 | F34: 1 | G34: 17 | H34: 9 | J34: 1 | K34: 12 | L34: 16 | N34: -1 | O34: 18 | P34: 9 | R34: 1 | S34: 13 | T34: 14 | W34: =C34-D34 -> -1 | X34: =G34-H34 -> 8 | Y34: =K34-L34 -> -4 | Z34: =O34-P34 -> 9 | AA34: =S34-T34 -> -1 | AC34: =(MAX($W34:$AA34)-W34)/2 -> 5 | AD34: =(MAX($W34:$AA34)-X34)/2 -> 0.5 | AE34: =(MAX($W34:$AA34)-Y34)/2 -> 6.5 | AF34: =(MAX($W34:$AA34)-Z34)/2 -> 0 | AG34: =(MAX($W34:$AA34)-AA34)/2 -> 5
A35: 2011-05-02 | B35: 1 | C35: 15 | D35: 15 | F35: 1 | G35: 18 | H35: 9 | K35: 12 | L35: 16 | O35: 18 | P35: 9 | R35: 1 | S35: 14 | T35: 14 | W35: =C35-D35 -> 0 | X35: =G35-H35 -> 9 | Y35: =K35-L35 -> -4 | Z35: =O35-P35 -> 9 | AA35: =S35-T35 -> 0 | AC35: =(MAX($W35:$AA35)-W35)/2 -> 4.5 | AD35: =(MAX($W35:$AA35)-X35)/2 -> 0 | AE35: =(MAX($W35:$AA35)-Y35)/2 -> 6.5 | AF35: =(MAX($W35:$AA35)-Z35)/2 -> 0 | AG35: =(MAX($W35:$AA35)-AA35)/2 -> 4.5
A36: 2011-05-03 | C36: 15 | D36: 15 | F36: -1 | G36: 18 | H36: 10 | J36: -1 | K36: 12 | L36: 17 | N36: 1 | O36: 19 | P36: 9 | R36: -1 | S36: 14 | T36: 15 | W36: =C36-D36 -> 0 | X36: =G36-H36 -> 8 | Y36: =K36-L36 -> -5 | Z36: =O36-P36 -> 10 | AA36: =S36-T36 -> -1 | AC36: =(MAX($W36:$AA36)-W36)/2 -> 5 | AD36: =(MAX($W36:$AA36)-X36)/2 -> 1 | AE36: =(MAX($W36:$AA36)-Y36)/2 -> 7.5 | AF36: =(MAX($W36:$AA36)-Z36)/2 -> 0 | AG36: =(MAX($W36:$AA36)-AA36)/2 -> 5.5
A37: 2011-05-04 | B37: 2 | C37: 17 | D37: 15 | F37: 1 | G37: 19 | H37: 10 | J37: -1 | K37: 12 | L37: 18 | N37: 1 | O37: 20 | P37: 9 | R37: -1 | S37: 14 | T37: 16 | W37: =C37-D37 -> 2 | X37: =G37-H37 -> 9 | Y37: =K37-L37 -> -6 | Z37: =O37-P37 -> 11 | AA37: =S37-T37 -> -2 | AC37: =(MAX($W37:$AA37)-W37)/2 -> 4.5 | AD37: =(MAX($W37:$AA37)-X37)/2 -> 1 | AE37: =(MAX($W37:$AA37)-Y37)/2 -> 8.5 | AF37: =(MAX($W37:$AA37)-Z37)/2 -> 0 | AG37: =(MAX($W37:$AA37)-AA37)/2 -> 6.5
A38: 2011-05-05 | B38: 1 | C38: 18 | D38: 15 | F38: -1 | G38: 19 | H38: 11 | J38: 1 | K38: 13 | L38: 18 | N38: 1 | O38: 21 | P38: 9 | R38: -1 | S38: 14 | T38: 17 | W38: =C38-D38 -> 3 | X38: =G38-H38 -> 8 | Y38: =K38-L38 -> -5 | Z38: =O38-P38 -> 12 | AA38: =S38-T38 -> -3 | AC38: =(MAX($W38:$AA38)-W38)/2 -> 4.5 | AD38: =(MAX($W38:$AA38)-X38)/2 -> 2 | AE38: =(MAX($W38:$AA38)-Y38)/2 -> 8.5 | AF38: =(MAX($W38:$AA38)-Z38)/2 -> 0 | AG38: =(MAX($W38:$AA38)-AA38)/2 -> 7.5
A39: 2011-05-06 | B39: 1 | C39: =C38+IF(B39>0,B39,0) -> 19 | D39: =D38-IF(B39<0,B39,0) -> 15 | F39: -1 | G39: =G38+IF(F39>0,F39,0) -> 19 | H39: =H38-IF(F39<0,F39,0) -> 12 | J39: 1 | K39: =K38+IF(J39>0,J39,0) -> 14 | L39: =L38-IF(J39<0,J39,0) -> 18 | N39: -1 | O39: =O38+IF(N39>0,N39,0) -> 21 | P39: =P38-IF(N39<0,N39,0) -> 10 | R39: 1 | S39: 15 | T39: 17 | W39: =C39-D39 -> 4 | X39: =G39-H39 -> 7 | Y39: =K39-L39 -> -4 | Z39: =O39-P39 -> 11 | AA39: =S39-T39 -> -2 | AC39: =(MAX($W39:$AA39)-W39)/2 -> 3.5 | AD39: =(MAX($W39:$AA39)-X39)/2 -> 2 | AE39: =(MAX($W39:$AA39)-Y39)/2 -> 7.5 | AF39: =(MAX($W39:$AA39)-Z39)/2 -> 0 | AG39: =(MAX($W39:$AA39)-AA39)/2 -> 6.5
A40: 2011-05-07 | B40: -1 | C40: 19 | D40: 16 | F40: -1 | G40: 19 | H40: 13 | J40: 1 | K40: 15 | L40: 18 | N40: 1 | O40: 22 | P40: 10 | R40: 1 | S40: 16 | T40: 17 | W40: =C40-D40 -> 3 | X40: =G40-H40 -> 6 | Y40: =K40-L40 -> -3 | Z40: =O40-P40 -> 12 | AA40: =S40-T40 -> -1 | AC40: =(MAX($W40:$AA40)-W40)/2 -> 4.5 | AD40: =(MAX($W40:$AA40)-X40)/2 -> 3 | AE40: =(MAX($W40:$AA40)-Y40)/2 -> 7.5 | AF40: =(MAX($W40:$AA40)-Z40)/2 -> 0 | AG40: =(MAX($W40:$AA40)-AA40)/2 -> 6.5
A41: 2011-05-08 | B41: 1 | C41: 20 | D41: 16 | F41: 1 | G41: 20 | H41: 13 | J41: -1 | K41: 15 | L41: 19 | N41: -1 | O41: 22 | P41: 11 | R41: -1 | S41: 16 | T41: 18 | W41: =C41-D41 -> 4 | X41: =G41-H41 -> 7 | Y41: =K41-L41 -> -4 | Z41: =O41-P41 -> 11 | AA41: =S41-T41 -> -2 | AC41: =(MAX($W41:$AA41)-W41)/2 -> 3.5 | AD41: =(MAX($W41:$AA41)-X41)/2 -> 2 | AE41: =(MAX($W41:$AA41)-Y41)/2 -> 7.5 | AF41: =(MAX($W41:$AA41)-Z41)/2 -> 0 | AG41: =(MAX($W41:$AA41)-AA41)/2 -> 6.5
A42: 2011-05-09 | C42: 20 | D42: 16 | F42: -1 | G42: 20 | H42: 14 | J42: -1 | K42: 15 | L42: 20 | N42: 1 | O42: 23 | P42: 11 | S42: 16 | T42: 18 | W42: =C42-D42 -> 4 | X42: =G42-H42 -> 6 | Y42: =K42-L42 -> -5 | Z42: =O42-P42 -> 12 | AA42: =S42-T42 -> -2 | AC42: =(MAX($W42:$AA42)-W42)/2 -> 4 | AD42: =(MAX($W42:$AA42)-X42)/2 -> 3 | AE42: =(MAX($W42:$AA42)-Y42)/2 -> 8.5 | AF42: =(MAX($W42:$AA42)-Z42)/2 -> 0 | AG42: =(MAX($W42:$AA42)-AA42)/2 -> 7
A43: 2011-05-10 | B43: -1 | C43: 20 | D43: 17 | F43: 1 | G43: =G42+IF(F43>0,F43,0) -> 21 | H43: =H42-IF(F43<0,F43,0) -> 14 | J43: 1 | K43: 16 | L43: 20 | N43: -1 | O43: 23 | P43: 12 | R43: 1 | S43: 17 | T43: 18 | W43: =C43-D43 -> 3 | X43: =G43-H43 -> 7 | Y43: =K43-L43 -> -4 | Z43: =O43-P43 -> 11 | AA43: =S43-T43 -> -1 | AC43: =(MAX($W43:$AA43)-W43)/2 -> 4 | AD43: =(MAX($W43:$AA43)-X43)/2 -> 2 | AE43: =(MAX($W43:$AA43)-Y43)/2 -> 7.5 | AF43: =(MAX($W43:$AA43)-Z43)/2 -> 0 | AG43: =(MAX($W43:$AA43)-AA43)/2 -> 6 | AJ43: =AJ181 -> PHI | AK43: 0 | AL43: 0.6296296296
A44: 2011-05-11 | B44: -1 | C44: 20 | D44: 18 | F44: -1 | G44: 21 | H44: 15 | K44: 16 | L44: 20 | N44: 1 | O44: 24 | P44: 12 | R44: 1 | S44: 18 | T44: 18 | W44: =C44-D44 -> 2 | X44: =G44-H44 -> 6 | Y44: =K44-L44 -> -4 | Z44: =O44-P44 -> 12 | AA44: =S44-T44 -> 0 | AC44: =(MAX($W44:$AA44)-W44)/2 -> 5 | AD44: =(MAX($W44:$AA44)-X44)/2 -> 3 | AE44: =(MAX($W44:$AA44)-Y44)/2 -> 8 | AF44: =(MAX($W44:$AA44)-Z44)/2 -> 0 | AG44: =(MAX($W44:$AA44)-AA44)/2 -> 6 | AJ44: =AJ182 -> ATL | AK44: =AK182 -> 13 | AL44: =AL182 -> 0.549382716
A45: 2011-05-12 | B45: 1 | C45: =C44+IF(B45>0,B45,0) -> 21 | D45: =D44-IF(B45<0,B45,0) -> 18 | G45: =G44+IF(F45>0,F45,0) -> 21 | H45: =H44-IF(F45<0,F45,0) -> 15 | J45: 1 | K45: =K44+IF(J45>0,J45,0) -> 17 | L45: =L44-IF(J45<0,J45,0) -> 20 | O45: =O44+IF(N45>0,N45,0) -> 24 | P45: =P44-IF(N45<0,N45,0) -> 12 | R45: -1 | S45: =S44+IF(R45>0,R45,0) -> 18 | T45: =T44-IF(R45<0,R45,0) -> 19 | W45: =C45-D45 -> 3 | X45: =G45-H45 -> 6 | Y45: =K45-L45 -> -3 | Z45: =O45-P45 -> 12 | AA45: =S45-T45 -> -1 | AC45: =(MAX($W45:$AA45)-W45)/2 -> 4.5 | AD45: =(MAX($W45:$AA45)-X45)/2 -> 3 | AE45: =(MAX($W45:$AA45)-Y45)/2 -> 7.5 | AF45: =(MAX($W45:$AA45)-Z45)/2 -> 0 | AG45: =(MAX($W45:$AA45)-AA45)/2 -> 6.5 | AJ45: =AJ183 -> WSH | AK45: =AK183 -> 21.5 | AL45: =AL183 -> 0.4968944099
A46: 2011-05-13 | B46: -1 | C46: 21 | D46: 19 | F46: 1 | G46: 22 | H46: 15 | J46: 1 | K46: 18 | L46: 20 | N46: 1 | O46: 25 | P46: 12 | R46: -1 | S46: =S45+IF(R46>0,R46,0) -> 18 | T46: =T45-IF(R46<0,R46,0) -> 20 | W46: =C46-D46 -> 2 | X46: =G46-H46 -> 7 | Y46: =K46-L46 -> -2 | Z46: =O46-P46 -> 13 | AA46: =S46-T46 -> -2 | AC46: =(MAX($W46:$AA46)-W46)/2 -> 5.5 | AD46: =(MAX($W46:$AA46)-X46)/2 -> 3 | AE46: =(MAX($W46:$AA46)-Y46)/2 -> 7.5 | AF46: =(MAX($W46:$AA46)-Z46)/2 -> 0 | AG46: =(MAX($W46:$AA46)-AA46)/2 -> 7.5 | AJ46: =AJ184 -> NYM | AK46: =AK184 -> 25 | AL46: =AL184 -> 0.475308642
A47: 2011-05-14 | B47: 1 | C47: 22 | D47: 19 | F47: 1 | G47: 23 | H47: 15 | J47: -1 | K47: 18 | L47: 21 | N47: -1 | O47: 25 | P47: 13 | R47: -1 | S47: 18 | T47: 21 | W47: =C47-D47 -> 3 | X47: =G47-H47 -> 8 | Y47: =K47-L47 -> -3 | Z47: =O47-P47 -> 12 | AA47: =S47-T47 -> -3 | AC47: =(MAX($W47:$AA47)-W47)/2 -> 4.5 | AD47: =(MAX($W47:$AA47)-X47)/2 -> 2 | AE47: =(MAX($W47:$AA47)-Y47)/2 -> 7.5 | AF47: =(MAX($W47:$AA47)-Z47)/2 -> 0 | AG47: =(MAX($W47:$AA47)-AA47)/2 -> 7.5 | AJ47: =AJ185 -> FLA | AK47: =AK185 -> 30 | AL47: =AL185 -> 0.4444444444
A48: 2011-05-15 | B48: 1 | C48: 23 | D48: 19 | F48: -1 | G48: 23 | H48: 16 | J48: 1 | K48: 19 | L48: 21 | N48: -1 | O48: 25 | P48: 14 | R48: 1 | S48: 19 | T48: 21 | W48: =C48-D48 -> 4 | X48: =G48-H48 -> 7 | Y48: =K48-L48 -> -2 | Z48: =O48-P48 -> 11 | AA48: =S48-T48 -> -2 | AC48: =(MAX($W48:$AA48)-W48)/2 -> 3.5 | AD48: =(MAX($W48:$AA48)-X48)/2 -> 2 | AE48: =(MAX($W48:$AA48)-Y48)/2 -> 6.5 | AF48: =(MAX($W48:$AA48)-Z48)/2 -> 0 | AG48: =(MAX($W48:$AA48)-AA48)/2 -> 6.5
A49: 2011-05-16 | B49: 1 | C49: 24 | D49: 19 | F49: 1 | G49: 24 | H49: 16 | J49: -1 | K49: 19 | L49: 22 | N49: -1 | O49: 25 | P49: 15 | R49: 1 | S49: 20 | T49: 21 | W49: =C49-D49 -> 5 | X49: =G49-H49 -> 8 | Y49: =K49-L49 -> -3 | Z49: =O49-P49 -> 10 | AA49: =S49-T49 -> -1 | AC49: =(MAX($W49:$AA49)-W49)/2 -> 2.5 | AD49: =(MAX($W49:$AA49)-X49)/2 -> 1 | AE49: =(MAX($W49:$AA49)-Y49)/2 -> 6.5 | AF49: =(MAX($W49:$AA49)-Z49)/2 -> 0 | AG49: =(MAX($W49:$AA49)-AA49)/2 -> 5.5
A50: 2011-05-17 | B50: 1 | C50: 25 | D50: 19 | G50: 24 | H50: 16 | K50: 19 | L50: 22 | N50: -1 | O50: 25 | P50: 16 | S50: 20 | T50: 21 | W50: =C50-D50 -> 6 | X50: =G50-H50 -> 8 | Y50: =K50-L50 -> -3 | Z50: =O50-P50 -> 9 | AA50: =S50-T50 -> -1 | AC50: =(MAX($W50:$AA50)-W50)/2 -> 1.5 | AD50: =(MAX($W50:$AA50)-X50)/2 -> 0.5 | AE50: =(MAX($W50:$AA50)-Y50)/2 -> 6 | AF50: =(MAX($W50:$AA50)-Z50)/2 -> 0 | AG50: =(MAX($W50:$AA50)-AA50)/2 -> 5
A51: 2011-05-18 | B51: -1 | C51: 25 | D51: 20 | F51: -1 | G51: 24 | H51: 17 | J51: 1 | K51: 20 | L51: 22 | N51: 1 | O51: 26 | P51: 16 | R51: -1 | S51: 20 | T51: 22 | W51: =C51-D51 -> 5 | X51: =G51-H51 -> 7 | Y51: =K51-L51 -> -2 | Z51: =O51-P51 -> 10 | AA51: =S51-T51 -> -2 | AC51: =(MAX($W51:$AA51)-W51)/2 -> 2.5 | AD51: =(MAX($W51:$AA51)-X51)/2 -> 1.5 | AE51: =(MAX($W51:$AA51)-Y51)/2 -> 6 | AF51: =(MAX($W51:$AA51)-Z51)/2 -> 0 | AG51: =(MAX($W51:$AA51)-AA51)/2 -> 6
A52: 2011-05-19 | B52: -1 | C52: 25 | D52: 21 | F52: -1 | G52: 24 | H52: 18 | J52: 1 | K52: 21 | L52: 22 | N52: -1 | O52: 26 | P52: 17 | R52: -1 | S52: 20 | T52: 23 | W52: =C52-D52 -> 4 | X52: =G52-H52 -> 6 | Y52: =K52-L52 -> -1 | Z52: =O52-P52 -> 9 | AA52: =S52-T52 -> -3 | AC52: =(MAX($W52:$AA52)-W52)/2 -> 2.5 | AD52: =(MAX($W52:$AA52)-X52)/2 -> 1.5 | AE52: =(MAX($W52:$AA52)-Y52)/2 -> 5 | AF52: =(MAX($W52:$AA52)-Z52)/2 -> 0 | AG52: =(MAX($W52:$AA52)-AA52)/2 -> 6
A53: 2011-05-20 | B53: -1 | C53: 25 | D53: 22 | F53: 1 | G53: 25 | H53: 18 | J53: 1 | K53: 22 | L53: 22 | N53: 1 | O53: 27 | P53: 17 | R53: 1 | S53: 21 | T53: 23 | W53: =C53-D53 -> 3 | X53: =G53-H53 -> 7 | Y53: =K53-L53 -> 0 | Z53: =O53-P53 -> 10 | AA53: =S53-T53 -> -2 | AC53: =(MAX($W53:$AA53)-W53)/2 -> 3.5 | AD53: =(MAX($W53:$AA53)-X53)/2 -> 1.5 | AE53: =(MAX($W53:$AA53)-Y53)/2 -> 5 | AF53: =(MAX($W53:$AA53)-Z53)/2 -> 0 | AG53: =(MAX($W53:$AA53)-AA53)/2 -> 6
A54: 2011-05-21 | B54: 1 | C54: 26 | D54: 22 | F54: 1 | G54: 26 | H54: 18 | J54: -1 | K54: 22 | L54: 23 | N54: 1 | O54: 28 | P54: 17 | R54: -1 | S54: 21 | T54: 24 | W54: =C54-D54 -> 4 | X54: =G54-H54 -> 8 | Y54: =K54-L54 -> -1 | Z54: =O54-P54 -> 11 | AA54: =S54-T54 -> -3 | AC54: =(MAX($W54:$AA54)-W54)/2 -> 3.5 | AD54: =(MAX($W54:$AA54)-X54)/2 -> 1.5 | AE54: =(MAX($W54:$AA54)-Y54)/2 -> 6 | AF54: =(MAX($W54:$AA54)-Z54)/2 -> 0 | AG54: =(MAX($W54:$AA54)-AA54)/2 -> 7
A55: 2011-05-22 | B55: -1 | C55: 26 | D55: 23 | F55: -1 | G55: 26 | H55: 19 | J55: -1 | K55: 22 | L55: 24 | N55: -1 | O55: 28 | P55: 18 | R55: -1 | S55: 21 | T55: 25 | W55: =C55-D55 -> 3 | X55: =G55-H55 -> 7 | Y55: =K55-L55 -> -2 | Z55: =O55-P55 -> 10 | AA55: =S55-T55 -> -4 | AC55: =(MAX($W55:$AA55)-W55)/2 -> 3.5 | AD55: =(MAX($W55:$AA55)-X55)/2 -> 1.5 | AE55: =(MAX($W55:$AA55)-Y55)/2 -> 6 | AF55: =(MAX($W55:$AA55)-Z55)/2 -> 0 | AG55: =(MAX($W55:$AA55)-AA55)/2 -> 7
A56: 2011-05-23 | C56: =C55+IF(B56>0,B56,0) -> 26 | D56: =D55-IF(B56<0,B56,0) -> 23 | G56: 26 | H56: 19 | K56: 22 | L56: 24 | N56: 1 | O56: 29 | P56: 18 | R56: -1 | S56: 21 | T56: 26 | W56: =C56-D56 -> 3 | X56: =G56-H56 -> 7 | Y56: =K56-L56 -> -2 | Z56: =O56-P56 -> 11 | AA56: =S56-T56 -> -5 | AC56: =(MAX($W56:$AA56)-W56)/2 -> 4 | AD56: =(MAX($W56:$AA56)-X56)/2 -> 2 | AE56: =(MAX($W56:$AA56)-Y56)/2 -> 6.5 | AF56: =(MAX($W56:$AA56)-Z56)/2 -> 0 | AG56: =(MAX($W56:$AA56)-AA56)/2 -> 8
A57: 2011-05-24 | B57: 1 | C57: 27 | D57: 23 | F57: 1 | G57: 27 | H57: 19 | J57: -1 | K57: 22 | L57: 25 | N57: -1 | O57: 29 | P57: 19 | R57: -1 | S57: 21 | T57: 27 | W57: =C57-D57 -> 4 | X57: =G57-H57 -> 8 | Y57: =K57-L57 -> -3 | Z57: =O57-P57 -> 10 | AA57: =S57-T57 -> -6 | AC57: =(MAX($W57:$AA57)-W57)/2 -> 3 | AD57: =(MAX($W57:$AA57)-X57)/2 -> 1 | AE57: =(MAX($W57:$AA57)-Y57)/2 -> 6.5 | AF57: =(MAX($W57:$AA57)-Z57)/2 -> 0 | AG57: =(MAX($W57:$AA57)-AA57)/2 -> 8
A58: 2011-05-25 | B58: 1 | C58: 28 | D58: 23 | F58: 1 | G58: 28 | H58: 19 | J58: 1 | K58: 23 | L58: 25 | N58: 1 | O58: 30 | P58: 19 | R58: -1 | S58: 21 | T58: 28 | W58: =C58-D58 -> 5 | X58: =G58-H58 -> 9 | Y58: =K58-L58 -> -2 | Z58: =O58-P58 -> 11 | AA58: =S58-T58 -> -7 | AC58: =(MAX($W58:$AA58)-W58)/2 -> 3 | AD58: =(MAX($W58:$AA58)-X58)/2 -> 1 | AE58: =(MAX($W58:$AA58)-Y58)/2 -> 6.5 | AF58: =(MAX($W58:$AA58)-Z58)/2 -> 0 | AG58: =(MAX($W58:$AA58)-AA58)/2 -> 9
A59: 2011-05-26 | C59: 28 | D59: 23 | F59: 1 | G59: 29 | H59: 19 | J59: -1 | K59: 23 | L59: 26 | N59: 1 | O59: 31 | P59: 19 | S59: 21 | T59: 28 | W59: =C59-D59 -> 5 | X59: =G59-H59 -> 10 | Y59: =K59-L59 -> -3 | Z59: =O59-P59 -> 12 | AA59: =S59-T59 -> -7 | AC59: =(MAX($W59:$AA59)-W59)/2 -> 3.5 | AD59: =(MAX($W59:$AA59)-X59)/2 -> 1 | AE59: =(MAX($W59:$AA59)-Y59)/2 -> 7.5 | AF59: =(MAX($W59:$AA59)-Z59)/2 -> 0 | AG59: =(MAX($W59:$AA59)-AA59)/2 -> 9.5
A60: 2011-05-27 | B60: -1 | C60: 28 | D60: 24 | F60: -1 | G60: 29 | H60: 20 | J60: -1 | K60: 23 | L60: 27 | N60: 1 | O60: 32 | P60: 19 | R60: 1 | S60: 22 | T60: 28 | W60: =C60-D60 -> 4 | X60: =G60-H60 -> 9 | Y60: =K60-L60 -> -4 | Z60: =O60-P60 -> 13 | AA60: =S60-T60 -> -6 | AC60: =(MAX($W60:$AA60)-W60)/2 -> 4.5 | AD60: =(MAX($W60:$AA60)-X60)/2 -> 2 | AE60: =(MAX($W60:$AA60)-Y60)/2 -> 8.5 | AF60: =(MAX($W60:$AA60)-Z60)/2 -> 0 | AG60: =(MAX($W60:$AA60)-AA60)/2 -> 9.5
A61: 2011-05-28 | B61: 1 | C61: 29 | D61: 24 | F61: 1 | G61: 30 | H61: 20 | J61: -1 | K61: 23 | L61: 28 | N61: 1 | O61: 33 | P61: 19 | R61: -1 | S61: 22 | T61: 29 | W61: =C61-D61 -> 5 | X61: =G61-H61 -> 10 | Y61: =K61-L61 -> -5 | Z61: =O61-P61 -> 14 | AA61: =S61-T61 -> -7 | AC61: =(MAX($W61:$AA61)-W61)/2 -> 4.5 | AD61: =(MAX($W61:$AA61)-X61)/2 -> 2 | AE61: =(MAX($W61:$AA61)-Y61)/2 -> 9.5 | AF61: =(MAX($W61:$AA61)-Z61)/2 -> 0 | AG61: =(MAX($W61:$AA61)-AA61)/2 -> 10.5
A62: 2011-05-29 | B62: 1 | C62: 30 | D62: 24 | F62: -1 | G62: 30 | H62: 21 | J62: 1 | K62: 24 | L62: 28 | N62: -1 | O62: 33 | P62: 20 | R62: -1 | S62: 22 | T62: 30 | W62: =C62-D62 -> 6 | X62: =G62-H62 -> 9 | Y62: =K62-L62 -> -4 | Z62: =O62-P62 -> 13 | AA62: =S62-T62 -> -8 | AC62: =(MAX($W62:$AA62)-W62)/2 -> 3.5 | AD62: =(MAX($W62:$AA62)-X62)/2 -> 2 | AE62: =(MAX($W62:$AA62)-Y62)/2 -> 8.5 | AF62: =(MAX($W62:$AA62)-Z62)/2 -> 0 | AG62: =(MAX($W62:$AA62)-AA62)/2 -> 10.5
A63: 2011-05-30 | B63: -1 | C63: 30 | D63: 25 | F63: -1 | G63: 30 | H63: 22 | J63: 1 | K63: 25 | L63: 28 | N63: 1 | O63: 34 | P63: 20 | R63: -1 | S63: 22 | T63: 31 | W63: =C63-D63 -> 5 | X63: =G63-H63 -> 8 | Y63: =K63-L63 -> -3 | Z63: =O63-P63 -> 14 | AA63: =S63-T63 -> -9 | AC63: =(MAX($W63:$AA63)-W63)/2 -> 4.5 | AD63: =(MAX($W63:$AA63)-X63)/2 -> 3 | AE63: =(MAX($W63:$AA63)-Y63)/2 -> 8.5 | AF63: =(MAX($W63:$AA63)-Z63)/2 -> 0 | AG63: =(MAX($W63:$AA63)-AA63)/2 -> 11.5
A64: 2011-05-31 | B64: -1 | C64: 30 | D64: 26 | F64: 1 | G64: 31 | H64: 22 | J64: -1 | K64: 25 | L64: 29 | N64: -1 | O64: 34 | P64: 21 | R64: 1 | S64: 23 | T64: 31 | W64: =C64-D64 -> 4 | X64: =G64-H64 -> 9 | Y64: =K64-L64 -> -4 | Z64: =O64-P64 -> 13 | AA64: =S64-T64 -> -8 | AC64: =(MAX($W64:$AA64)-W64)/2 -> 4.5 | AD64: =(MAX($W64:$AA64)-X64)/2 -> 2 | AE64: =(MAX($W64:$AA64)-Y64)/2 -> 8.5 | AF64: =(MAX($W64:$AA64)-Z64)/2 -> 0 | AG64: =(MAX($W64:$AA64)-AA64)/2 -> 10.5
A65: 2011-06-01 | B65: 1 | C65: 31 | D65: 26 | F65: -1 | G65: 31 | H65: 23 | J65: -1 | K65: 25 | L65: 30 | N65: -1 | O65: 34 | P65: 22 | R65: 1 | S65: 24 | T65: 31 | W65: =C65-D65 -> 5 | X65: =G65-H65 -> 8 | Y65: =K65-L65 -> -5 | Z65: =O65-P65 -> 12 | AA65: =S65-T65 -> -7 | AC65: =(MAX($W65:$AA65)-W65)/2 -> 3.5 | AD65: =(MAX($W65:$AA65)-X65)/2 -> 2 | AE65: =(MAX($W65:$AA65)-Y65)/2 -> 8.5 | AF65: =(MAX($W65:$AA65)-Z65)/2 -> 0 | AG65: =(MAX($W65:$AA65)-AA65)/2 -> 9.5
A66: 2011-06-02 | C66: 31 | D66: 26 | G66: 31 | H66: 23 | J66: 1 | K66: 26 | L66: 30 | O66: 34 | P66: 22 | R66: 1 | S66: 25 | T66: 31 | W66: =C66-D66 -> 5 | X66: =G66-H66 -> 8 | Y66: =K66-L66 -> -4 | Z66: =O66-P66 -> 12 | AA66: =S66-T66 -> -6 | AC66: =(MAX($W66:$AA66)-W66)/2 -> 3.5 | AD66: =(MAX($W66:$AA66)-X66)/2 -> 2 | AE66: =(MAX($W66:$AA66)-Y66)/2 -> 8 | AF66: =(MAX($W66:$AA66)-Z66)/2 -> 0 | AG66: =(MAX($W66:$AA66)-AA66)/2 -> 9
A67: 2011-06-03 | B67: 1 | C67: 32 | D67: 26 | F67: -1 | G67: 31 | H67: 24 | J67: -1 | K67: 26 | L67: 31 | N67: -1 | O67: 34 | P67: 23 | R67: -1 | S67: 25 | T67: 32 | W67: =C67-D67 -> 6 | X67: =G67-H67 -> 7 | Y67: =K67-L67 -> -5 | Z67: =O67-P67 -> 11 | AA67: =S67-T67 -> -7 | AC67: =(MAX($W67:$AA67)-W67)/2 -> 2.5 | AD67: =(MAX($W67:$AA67)-X67)/2 -> 2 | AE67: =(MAX($W67:$AA67)-Y67)/2 -> 8 | AF67: =(MAX($W67:$AA67)-Z67)/2 -> 0 | AG67: =(MAX($W67:$AA67)-AA67)/2 -> 9
A68: 2011-06-04 | B68: -1 | C68: 32 | D68: 27 | F68: -1 | G68: 31 | H68: 25 | J68: 1 | K68: 27 | L68: 31 | N68: -1 | O68: 34 | P68: 24 | R68: -1 | S68: 25 | T68: 33 | W68: =C68-D68 -> 5 | X68: =G68-H68 -> 6 | Y68: =K68-L68 -> -4 | Z68: =O68-P68 -> 10 | AA68: =S68-T68 -> -8 | AC68: =(MAX($W68:$AA68)-W68)/2 -> 2.5 | AD68: =(MAX($W68:$AA68)-X68)/2 -> 2 | AE68: =(MAX($W68:$AA68)-Y68)/2 -> 7 | AF68: =(MAX($W68:$AA68)-Z68)/2 -> 0 | AG68: =(MAX($W68:$AA68)-AA68)/2 -> 9
A69: 2011-06-05 | B69: -1 | C69: 32 | D69: 28 | F69: -1 | G69: 31 | H69: 26 | J69: 1 | K69: 28 | L69: 31 | N69: 1 | O69: 35 | P69: 24 | R69: 1 | S69: 26 | T69: 33 | W69: =C69-D69 -> 4 | X69: =G69-H69 -> 5 | Y69: =K69-L69 -> -3 | Z69: =O69-P69 -> 11 | AA69: =S69-T69 -> -7 | AC69: =(MAX($W69:$AA69)-W69)/2 -> 3.5 | AD69: =(MAX($W69:$AA69)-X69)/2 -> 3 | AE69: =(MAX($W69:$AA69)-Y69)/2 -> 7 | AF69: =(MAX($W69:$AA69)-Z69)/2 -> 0 | AG69: =(MAX($W69:$AA69)-AA69)/2 -> 9
A70: 2011-06-06 | C70: =C69+IF(B70>0,B70,0) -> 32 | D70: =D69-IF(B70<0,B70,0) -> 28 | F70: -1 | G70: =G69+IF(F70>0,F70,0) -> 31 | H70: =H69-IF(F70<0,F70,0) -> 27 | K70: 28 | L70: 31 | N70: 1 | O70: 36 | P70: 24 | R70: -1 | S70: 26 | T70: 34 | W70: =C70-D70 -> 4 | X70: =G70-H70 -> 4 | Y70: =K70-L70 -> -3 | Z70: =O70-P70 -> 12 | AA70: =S70-T70 -> -8 | AC70: =(MAX($W70:$AA70)-W70)/2 -> 4 | AD70: =(MAX($W70:$AA70)-X70)/2 -> 4 | AE70: =(MAX($W70:$AA70)-Y70)/2 -> 7.5 | AF70: =(MAX($W70:$AA70)-Z70)/2 -> 0 | AG70: =(MAX($W70:$AA70)-AA70)/2 -> 10
A71: 2011-06-07 | B71: 1 | C71: =C70+IF(B71>0,B71,0) -> 33 | D71: =D70-IF(B71<0,B71,0) -> 28 | F71: -1 | G71: =G70+IF(F71>0,F71,0) -> 31 | H71: =H70-IF(F71<0,F71,0) -> 28 | J71: 1 | K71: =K70+IF(J71>0,J71,0) -> 29 | L71: =L70-IF(J71<0,J71,0) -> 31 | N71: -1 | O71: =O70+IF(N71>0,N71,0) -> 36 | P71: =P70-IF(N71<0,N71,0) -> 25 | R71: 1 | S71: 27 | T71: 34 | W71: =C71-D71 -> 5 | X71: =G71-H71 -> 3 | Y71: =K71-L71 -> -2 | Z71: =O71-P71 -> 11 | AA71: =S71-T71 -> -7 | AC71: =(MAX($W71:$AA71)-W71)/2 -> 3 | AD71: =(MAX($W71:$AA71)-X71)/2 -> 4 | AE71: =(MAX($W71:$AA71)-Y71)/2 -> 6.5 | AF71: =(MAX($W71:$AA71)-Z71)/2 -> 0 | AG71: =(MAX($W71:$AA71)-AA71)/2 -> 9
A72: 2011-06-08 | B72: 1 | C72: =C71+IF(B72>0,B72,0) -> 34 | D72: =D71-IF(B72<0,B72,0) -> 28 | F72: -1 | G72: =G71+IF(F72>0,F72,0) -> 31 | H72: =H71-IF(F72<0,F72,0) -> 29 | J72: -1 | K72: 29 | L72: 32 | N72: 1 | O72: 37 | P72: 25 | R72: -1 | S72: 27 | T72: 35 | W72: =C72-D72 -> 6 | X72: =G72-H72 -> 2 | Y72: =K72-L72 -> -3 | Z72: =O72-P72 -> 12 | AA72: =S72-T72 -> -8 | AC72: =(MAX($W72:$AA72)-W72)/2 -> 3 | AD72: =(MAX($W72:$AA72)-X72)/2 -> 5 | AE72: =(MAX($W72:$AA72)-Y72)/2 -> 7.5 | AF72: =(MAX($W72:$AA72)-Z72)/2 -> 0 | AG72: =(MAX($W72:$AA72)-AA72)/2 -> 10
A73: 2011-06-09 | B73: 1 | C73: =C72+IF(B73>0,B73,0) -> 35 | D73: =D72-IF(B73<0,B73,0) -> 28 | F73: -1 | G73: =G72+IF(F73>0,F73,0) -> 31 | H73: =H72-IF(F73<0,F73,0) -> 30 | J73: 1 | K73: 30 | L73: 32 | N73: -1 | O73: 37 | P73: 26 | R73: -1 | S73: 27 | T73: 36 | W73: =C73-D73 -> 7 | X73: =G73-H73 -> 1 | Y73: =K73-L73 -> -2 | Z73: =O73-P73 -> 11 | AA73: =S73-T73 -> -9 | AC73: =(MAX($W73:$AA73)-W73)/2 -> 2 | AD73: =(MAX($W73:$AA73)-X73)/2 -> 5 | AE73: =(MAX($W73:$AA73)-Y73)/2 -> 6.5 | AF73: =(MAX($W73:$AA73)-Z73)/2 -> 0 | AG73: =(MAX($W73:$AA73)-AA73)/2 -> 10
A74: 2011-06-10 | B74: 1 | C74: 36 | D74: 28 | F74: 1 | G74: 32 | H74: 30 | J74: 1 | K74: 31 | L74: 32 | N74: 1 | O74: 38 | P74: 26 | R74: 1 | S74: 28 | T74: 36 | W74: =C74-D74 -> 8 | X74: =G74-H74 -> 2 | Y74: =K74-L74 -> -1 | Z74: =O74-P74 -> 12 | AA74: =S74-T74 -> -8 | AC74: =(MAX($W74:$AA74)-W74)/2 -> 2 | AD74: =(MAX($W74:$AA74)-X74)/2 -> 5 | AE74: =(MAX($W74:$AA74)-Y74)/2 -> 6.5 | AF74: =(MAX($W74:$AA74)-Z74)/2 -> 0 | AG74: =(MAX($W74:$AA74)-AA74)/2 -> 10
A75: 2011-06-11 | B75: 1 | C75: 37 | D75: 28 | F75: -1 | G75: 32 | H75: 31 | J75: -1 | K75: 31 | L75: 33 | N75: 1 | O75: 39 | P75: 26 | R75: 1 | S75: 29 | T75: 36 | W75: =C75-D75 -> 9 | X75: =G75-H75 -> 1 | Y75: =K75-L75 -> -2 | Z75: =O75-P75 -> 13 | AA75: =S75-T75 -> -7 | AC75: =(MAX($W75:$AA75)-W75)/2 -> 2 | AD75: =(MAX($W75:$AA75)-X75)/2 -> 6 | AE75: =(MAX($W75:$AA75)-Y75)/2 -> 7.5 | AF75: =(MAX($W75:$AA75)-Z75)/2 -> 0 | AG75: =(MAX($W75:$AA75)-AA75)/2 -> 10
A76: 2011-06-12 | B76: 1 | C76: 38 | D76: 28 | F76: -1 | G76: 32 | H76: 32 | J76: 1 | K76: 32 | L76: 33 | N76: 1 | O76: 40 | P76: 26 | R76: 1 | S76: 30 | T76: 36 | W76: =C76-D76 -> 10 | X76: =G76-H76 -> 0 | Y76: =K76-L76 -> -1 | Z76: =O76-P76 -> 14 | AA76: =S76-T76 -> -6 | AC76: =(MAX($W76:$AA76)-W76)/2 -> 2 | AD76: =(MAX($W76:$AA76)-X76)/2 -> 7 | AE76: =(MAX($W76:$AA76)-Y76)/2 -> 7.5 | AF76: =(MAX($W76:$AA76)-Z76)/2 -> 0 | AG76: =(MAX($W76:$AA76)-AA76)/2 -> 10
A77: 2011-06-13 | B77: -1 | C77: 38 | D77: 29 | F77: -1 | G77: 32 | H77: 33 | J77: -1 | K77: 32 | L77: 34 | O77: 40 | P77: 26 | S77: 30 | T77: 36 | W77: =C77-D77 -> 9 | X77: =G77-H77 -> -1 | Y77: =K77-L77 -> -2 | Z77: =O77-P77 -> 14 | AA77: =S77-T77 -> -6 | AC77: =(MAX($W77:$AA77)-W77)/2 -> 2.5 | AD77: =(MAX($W77:$AA77)-X77)/2 -> 7.5 | AE77: =(MAX($W77:$AA77)-Y77)/2 -> 8 | AF77: =(MAX($W77:$AA77)-Z77)/2 -> 0 | AG77: =(MAX($W77:$AA77)-AA77)/2 -> 10
A78: 2011-06-14 | B78: -1 | C78: 38 | D78: 30 | F78: -1 | G78: 32 | H78: 34 | J78: 1 | K78: 33 | L78: 34 | N78: 1 | O78: 41 | P78: 26 | R78: 1 | S78: =S77+IF(R78>0,R78,0) -> 31 | T78: =T77-IF(R78<0,R78,0) -> 36 | W78: =C78-D78 -> 8 | X78: =G78-H78 -> -2 | Y78: =K78-L78 -> -1 | Z78: =O78-P78 -> 15 | AA78: =S78-T78 -> -5 | AC78: =(MAX($W78:$AA78)-W78)/2 -> 3.5 | AD78: =(MAX($W78:$AA78)-X78)/2 -> 8.5 | AE78: =(MAX($W78:$AA78)-Y78)/2 -> 8 | AF78: =(MAX($W78:$AA78)-Z78)/2 -> 0 | AG78: =(MAX($W78:$AA78)-AA78)/2 -> 10
A79: 2011-06-15 | B79: -1 | C79: 38 | D79: 31 | F79: -2 | G79: 32 | H79: 36 | J79: 1 | K79: 34 | L79: 34 | N79: 2 | O79: 43 | P79: 26 | R79: 1 | S79: 32 | T79: 36 | W79: =C79-D79 -> 7 | X79: =G79-H79 -> -4 | Y79: =K79-L79 -> 0 | Z79: =O79-P79 -> 17 | AA79: =S79-T79 -> -4 | AC79: =(MAX($W79:$AA79)-W79)/2 -> 5 | AD79: =(MAX($W79:$AA79)-X79)/2 -> 10.5 | AE79: =(MAX($W79:$AA79)-Y79)/2 -> 8.5 | AF79: =(MAX($W79:$AA79)-Z79)/2 -> 0 | AG79: =(MAX($W79:$AA79)-AA79)/2 -> 10.5
A80: 2011-06-16 | B80: 1 | C80: 39 | D80: 31 | F80: -1 | G80: 32 | H80: 37 | J80: -1 | K80: 34 | L80: 35 | N80: 1 | O80: 44 | P80: 26 | R80: 1 | S80: 33 | T80: 36 | W80: =C80-D80 -> 8 | X80: =G80-H80 -> -5 | Y80: =K80-L80 -> -1 | Z80: =O80-P80 -> 18 | AA80: =S80-T80 -> -3 | AC80: =(MAX($W80:$AA80)-W80)/2 -> 5 | AD80: =(MAX($W80:$AA80)-X80)/2 -> 11.5 | AE80: =(MAX($W80:$AA80)-Y80)/2 -> 9.5 | AF80: =(MAX($W80:$AA80)-Z80)/2 -> 0 | AG80: =(MAX($W80:$AA80)-AA80)/2 -> 10.5
A81: 2011-06-17 | B81: -1 | C81: 39 | D81: 32 | F81: -1 | G81: 32 | H81: 38 | J81: -1 | K81: 34 | L81: 36 | N81: -1 | O81: 44 | P81: 27 | R81: 1 | S81: 34 | T81: 36 | W81: =C81-D81 -> 7 | X81: =G81-H81 -> -6 | Y81: =K81-L81 -> -2 | Z81: =O81-P81 -> 17 | AA81: =S81-T81 -> -2 | AC81: =(MAX($W81:$AA81)-W81)/2 -> 5 | AD81: =(MAX($W81:$AA81)-X81)/2 -> 11.5 | AE81: =(MAX($W81:$AA81)-Y81)/2 -> 9.5 | AF81: =(MAX($W81:$AA81)-Z81)/2 -> 0 | AG81: =(MAX($W81:$AA81)-AA81)/2 -> 9.5
A82: 2011-06-18 | B82: -1 | C82: 39 | D82: 33 | F82: -1 | G82: 32 | H82: 39 | J82: 1 | K82: 35 | L82: 36 | N82: 1 | O82: 45 | P82: 27 | R82: 1 | S82: 35 | T82: 36 | W82: =C82-D82 -> 6 | X82: =G82-H82 -> -7 | Y82: =K82-L82 -> -1 | Z82: =O82-P82 -> 18 | AA82: =S82-T82 -> -1 | AC82: =(MAX($W82:$AA82)-W82)/2 -> 6 | AD82: =(MAX($W82:$AA82)-X82)/2 -> 12.5 | AE82: =(MAX($W82:$AA82)-Y82)/2 -> 9.5 | AF82: =(MAX($W82:$AA82)-Z82)/2 -> 0 | AG82: =(MAX($W82:$AA82)-AA82)/2 -> 9.5
A83: 2011-06-19 | B83: 1 | C83: 40 | D83: 33 | F83: -1 | G83: 32 | H83: 40 | J83: -1 | K83: 35 | L83: 37 | N83: -1 | O83: 45 | P83: 28 | R83: -1 | S83: 35 | T83: 37 | W83: =C83-D83 -> 7 | X83: =G83-H83 -> -8 | Y83: =K83-L83 -> -2 | Z83: =O83-P83 -> 17 | AA83: =S83-T83 -> -2 | AC83: =(MAX($W83:$AA83)-W83)/2 -> 5 | AD83: =(MAX($W83:$AA83)-X83)/2 -> 12.5 | AE83: =(MAX($W83:$AA83)-Y83)/2 -> 9.5 | AF83: =(MAX($W83:$AA83)-Z83)/2 -> 0 | AG83: =(MAX($W83:$AA83)-AA83)/2 -> 9.5
A84: 2011-06-20 | B84: 1 | C84: 41 | D84: 33 | F84: -1 | G84: 32 | H84: 41 | K84: 35 | L84: 37 | O84: 45 | P84: 28 | S84: 35 | T84: 37 | W84: =C84-D84 -> 8 | X84: =G84-H84 -> -9 | Y84: =K84-L84 -> -2 | Z84: =O84-P84 -> 17 | AA84: =S84-T84 -> -2 | AC84: =(MAX($W84:$AA84)-W84)/2 -> 4.5 | AD84: =(MAX($W84:$AA84)-X84)/2 -> 13 | AE84: =(MAX($W84:$AA84)-Y84)/2 -> 9.5 | AF84: =(MAX($W84:$AA84)-Z84)/2 -> 0 | AG84: =(MAX($W84:$AA84)-AA84)/2 -> 9.5
A85: 2011-06-21 | B85: 1 | C85: 42 | D85: 33 | F85: 1 | G85: 33 | H85: 41 | J85: -1 | K85: 35 | L85: 38 | N85: 1 | O85: 46 | P85: 28 | R85: 1 | S85: 36 | T85: 37 | W85: =C85-D85 -> 9 | X85: =G85-H85 -> -8 | Y85: =K85-L85 -> -3 | Z85: =O85-P85 -> 18 | AA85: =S85-T85 -> -1 | AC85: =(MAX($W85:$AA85)-W85)/2 -> 4.5 | AD85: =(MAX($W85:$AA85)-X85)/2 -> 13 | AE85: =(MAX($W85:$AA85)-Y85)/2 -> 10.5 | AF85: =(MAX($W85:$AA85)-Z85)/2 -> 0 | AG85: =(MAX($W85:$AA85)-AA85)/2 -> 9.5
A86: 2011-06-22 | B86: 1 | C86: 43 | D86: 33 | F86: -1 | G86: =G85+IF(F86>0,F86,0) -> 33 | H86: =H85-IF(F86<0,F86,0) -> 42 | J86: 1 | K86: 36 | L86: 38 | N86: 1 | O86: 47 | P86: 28 | R86: 1 | S86: 37 | T86: 37 | W86: =C86-D86 -> 10 | X86: =G86-H86 -> -9 | Y86: =K86-L86 -> -2 | Z86: =O86-P86 -> 19 | AA86: =S86-T86 -> 0 | AC86: =(MAX($W86:$AA86)-W86)/2 -> 4.5 | AD86: =(MAX($W86:$AA86)-X86)/2 -> 14 | AE86: =(MAX($W86:$AA86)-Y86)/2 -> 10.5 | AF86: =(MAX($W86:$AA86)-Z86)/2 -> 0 | AG86: =(MAX($W86:$AA86)-AA86)/2 -> 9.5
A87: 2011-06-23 | C87: 43 | D87: 33 | G87: 33 | H87: 42 | J87: 1 | K87: 37 | L87: 38 | N87: -1 | O87: 47 | P87: 29 | R87: 1 | S87: 38 | T87: 37 | W87: =C87-D87 -> 10 | X87: =G87-H87 -> -9 | Y87: =K87-L87 -> -1 | Z87: =O87-P87 -> 18 | AA87: =S87-T87 -> 1 | AC87: =(MAX($W87:$AA87)-W87)/2 -> 4 | AD87: =(MAX($W87:$AA87)-X87)/2 -> 13.5 | AE87: =(MAX($W87:$AA87)-Y87)/2 -> 9.5 | AF87: =(MAX($W87:$AA87)-Z87)/2 -> 0 | AG87: =(MAX($W87:$AA87)-AA87)/2 -> 8.5
A88: 2011-06-24 | B88: -1 | C88: 43 | D88: 34 | F88: -1 | G88: 33 | H88: 43 | J88: -1 | K88: 37 | L88: 39 | N88: 1 | O88: 48 | P88: 29 | R88: 1 | S88: =S87+IF(R88>0,R88,0) -> 39 | T88: =T87-IF(R88<0,R88,0) -> 37 | W88: =C88-D88 -> 9 | X88: =G88-H88 -> -10 | Y88: =K88-L88 -> -2 | Z88: =O88-P88 -> 19 | AA88: =S88-T88 -> 2 | AC88: =(MAX($W88:$AA88)-W88)/2 -> 5 | AD88: =(MAX($W88:$AA88)-X88)/2 -> 14.5 | AE88: =(MAX($W88:$AA88)-Y88)/2 -> 10.5 | AF88: =(MAX($W88:$AA88)-Z88)/2 -> 0 | AG88: =(MAX($W88:$AA88)-AA88)/2 -> 8.5
A89: 2011-06-25 | B89: 1 | C89: 44 | D89: 34 | F89: 1 | G89: 34 | H89: 43 | J89: 1 | K89: 38 | L89: 39 | N89: -1 | O89: 48 | P89: 30 | R89: -1 | S89: 39 | T89: 38 | W89: =C89-D89 -> 10 | X89: =G89-H89 -> -9 | Y89: =K89-L89 -> -1 | Z89: =O89-P89 -> 18 | AA89: =S89-T89 -> 1 | AC89: =(MAX($W89:$AA89)-W89)/2 -> 4 | AD89: =(MAX($W89:$AA89)-X89)/2 -> 13.5 | AE89: =(MAX($W89:$AA89)-Y89)/2 -> 9.5 | AF89: =(MAX($W89:$AA89)-Z89)/2 -> 0 | AG89: =(MAX($W89:$AA89)-AA89)/2 -> 8.5
A90: 2011-06-26 | B90: -1 | C90: 44 | D90: 35 | F90: -1 | G90: 34 | H90: 44 | J90: 1 | K90: 39 | L90: 39 | N90: 1 | O90: 49 | P90: 30 | R90: 1 | S90: 40 | T90: 38 | W90: =C90-D90 -> 9 | X90: =G90-H90 -> -10 | Y90: =K90-L90 -> 0 | Z90: =O90-P90 -> 19 | AA90: =S90-T90 -> 2 | AC90: =(MAX($W90:$AA90)-W90)/2 -> 5 | AD90: =(MAX($W90:$AA90)-X90)/2 -> 14.5 | AE90: =(MAX($W90:$AA90)-Y90)/2 -> 9.5 | AF90: =(MAX($W90:$AA90)-Z90)/2 -> 0 | AG90: =(MAX($W90:$AA90)-AA90)/2 -> 8.5
A91: 2011-06-27 | B91: 1 | C91: 45 | D91: 35 | G91: 34 | H91: 44 | K91: 39 | L91: 39 | O91: 49 | P91: 30 | R91: -1 | S91: 40 | T91: 39 | W91: =C91-D91 -> 10 | X91: =G91-H91 -> -10 | Y91: =K91-L91 -> 0 | Z91: =O91-P91 -> 19 | AA91: =S91-T91 -> 1 | AC91: =(MAX($W91:$AA91)-W91)/2 -> 4.5 | AD91: =(MAX($W91:$AA91)-X91)/2 -> 14.5 | AE91: =(MAX($W91:$AA91)-Y91)/2 -> 9.5 | AF91: =(MAX($W91:$AA91)-Z91)/2 -> 0 | AG91: =(MAX($W91:$AA91)-AA91)/2 -> 9
A92: 2011-06-28 | B92: 1 | C92: 46 | D92: 35 | F92: -1 | G92: 34 | H92: 45 | J92: 1 | K92: 40 | L92: 39 | N92: 1 | O92: 50 | P92: 30 | R92: -1 | S92: 40 | T92: 40 | W92: =C92-D92 -> 11 | X92: =G92-H92 -> -11 | Y92: =K92-L92 -> 1 | Z92: =O92-P92 -> 20 | AA92: =S92-T92 -> 0 | AC92: =(MAX($W92:$AA92)-W92)/2 -> 4.5 | AD92: =(MAX($W92:$AA92)-X92)/2 -> 15.5 | AE92: =(MAX($W92:$AA92)-Y92)/2 -> 9.5 | AF92: =(MAX($W92:$AA92)-Z92)/2 -> 0 | AG92: =(MAX($W92:$AA92)-AA92)/2 -> 10
A93: 2011-06-29 | B93: 1 | C93: 47 | D93: 35 | F93: 1 | G93: 35 | H93: 45 | J93: 1 | K93: 41 | L93: 39 | N93: 1 | O93: 51 | P93: 30 | R93: -1 | S93: 40 | T93: 41 | W93: =C93-D93 -> 12 | X93: =G93-H93 -> -10 | Y93: =K93-L93 -> 2 | Z93: =O93-P93 -> 21 | AA93: =S93-T93 -> -1 | AC93: =(MAX($W93:$AA93)-W93)/2 -> 4.5 | AD93: =(MAX($W93:$AA93)-X93)/2 -> 15.5 | AE93: =(MAX($W93:$AA93)-Y93)/2 -> 9.5 | AF93: =(MAX($W93:$AA93)-Z93)/2 -> 0 | AG93: =(MAX($W93:$AA93)-AA93)/2 -> 11
A94: 2011-06-30 | C94: 47 | D94: 35 | F94: 1 | G94: 36 | H94: 45 | J94: -1 | K94: 41 | L94: 40 | N94: -1 | O94: 51 | P94: 31 | S94: 40 | T94: 41 | W94: =C94-D94 -> 12 | X94: =G94-H94 -> -9 | Y94: =K94-L94 -> 1 | Z94: =O94-P94 -> 20 | AA94: =S94-T94 -> -1 | AC94: =(MAX($W94:$AA94)-W94)/2 -> 4 | AD94: =(MAX($W94:$AA94)-X94)/2 -> 14.5 | AE94: =(MAX($W94:$AA94)-Y94)/2 -> 9.5 | AF94: =(MAX($W94:$AA94)-Z94)/2 -> 0 | AG94: =(MAX($W94:$AA94)-AA94)/2 -> 10.5
A95: 2011-07-01 | B95: 1 | C95: 48 | D95: 35 | F95: -1 | G95: 36 | H95: 46 | J95: -1 | K95: 41 | L95: 41 | N95: 1 | O95: 52 | P95: 31 | R95: 1 | S95: 41 | T95: 41 | W95: =C95-D95 -> 13 | X95: =G95-H95 -> -10 | Y95: =K95-L95 -> 0 | Z95: =O95-P95 -> 21 | AA95: =S95-T95 -> 0 | AC95: =(MAX($W95:$AA95)-W95)/2 -> 4 | AD95: =(MAX($W95:$AA95)-X95)/2 -> 15.5 | AE95: =(MAX($W95:$AA95)-Y95)/2 -> 10.5 | AF95: =(MAX($W95:$AA95)-Z95)/2 -> 0 | AG95: =(MAX($W95:$AA95)-AA95)/2 -> 10.5
A96: 2011-07-02 | B96: 1 | C96: 49 | D96: 35 | F96: 1 | G96: 37 | H96: 46 | J96: -1 | K96: 41 | L96: 42 | N96: 1 | O96: 53 | P96: 31 | R96: 0 | S96: 42 | T96: 42 | W96: =C96-D96 -> 14 | X96: =G96-H96 -> -9 | Y96: =K96-L96 -> -1 | Z96: =O96-P96 -> 22 | AA96: =S96-T96 -> 0 | AC96: =(MAX($W96:$AA96)-W96)/2 -> 4 | AD96: =(MAX($W96:$AA96)-X96)/2 -> 15.5 | AE96: =(MAX($W96:$AA96)-Y96)/2 -> 11.5 | AF96: =(MAX($W96:$AA96)-Z96)/2 -> 0 | AG96: =(MAX($W96:$AA96)-AA96)/2 -> 11
A97: 2011-07-03 | B97: -1 | C97: 49 | D97: 36 | F97: 1 | G97: 38 | H97: 46 | J97: 1 | K97: 42 | L97: 42 | N97: -1 | O97: 53 | P97: 32 | R97: -1 | S97: 42 | T97: 43 | W97: =C97-D97 -> 13 | X97: =G97-H97 -> -8 | Y97: =K97-L97 -> 0 | Z97: =O97-P97 -> 21 | AA97: =S97-T97 -> -1 | AC97: =(MAX($W97:$AA97)-W97)/2 -> 4 | AD97: =(MAX($W97:$AA97)-X97)/2 -> 14.5 | AE97: =(MAX($W97:$AA97)-Y97)/2 -> 10.5 | AF97: =(MAX($W97:$AA97)-Z97)/2 -> 0 | AG97: =(MAX($W97:$AA97)-AA97)/2 -> 11
A98: 2011-07-04 | B98: 1 | C98: 50 | D98: 36 | F98: -1 | G98: 38 | H98: 47 | J98: 1 | K98: 43 | L98: 42 | N98: 1 | O98: 54 | P98: 32 | R98: 1 | S98: 43 | T98: 43 | W98: =C98-D98 -> 14 | X98: =G98-H98 -> -9 | Y98: =K98-L98 -> 1 | Z98: =O98-P98 -> 22 | AA98: =S98-T98 -> 0 | AC98: =(MAX($W98:$AA98)-W98)/2 -> 4 | AD98: =(MAX($W98:$AA98)-X98)/2 -> 15.5 | AE98: =(MAX($W98:$AA98)-Y98)/2 -> 10.5 | AF98: =(MAX($W98:$AA98)-Z98)/2 -> 0 | AG98: =(MAX($W98:$AA98)-AA98)/2 -> 11
A99: 2011-07-05 | B99: 1 | C99: 51 | D99: 36 | F99: -1 | G99: 38 | H99: 48 | J99: 1 | K99: 44 | L99: 42 | N99: 1 | O99: 55 | P99: 32 | R99: 1 | S99: 44 | T99: 43 | W99: =C99-D99 -> 15 | X99: =G99-H99 -> -10 | Y99: =K99-L99 -> 2 | Z99: =O99-P99 -> 23 | AA99: =S99-T99 -> 1 | AC99: =(MAX($W99:$AA99)-W99)/2 -> 4 | AD99: =(MAX($W99:$AA99)-X99)/2 -> 16.5 | AE99: =(MAX($W99:$AA99)-Y99)/2 -> 10.5 | AF99: =(MAX($W99:$AA99)-Z99)/2 -> 0 | AG99: =(MAX($W99:$AA99)-AA99)/2 -> 11
A100: 2011-07-06 | B100: 1 | C100: =C99+IF(B100>0,B100,0) -> 52 | D100: =D99-IF(B100<0,B100,0) -> 36 | F100: 1 | G100: 39 | H100: 48 | J100: 1 | K100: 45 | L100: 42 | N100: -1 | O100: 55 | P100: 33 | R100: 1 | S100: 45 | T100: 43 | W100: =C100-D100 -> 16 | X100: =G100-H100 -> -9 | Y100: =K100-L100 -> 3 | Z100: =O100-P100 -> 22 | AA100: =S100-T100 -> 2 | AC100: =(MAX($W100:$AA100)-W100)/2 -> 3 | AD100: =(MAX($W100:$AA100)-X100)/2 -> 15.5 | AE100: =(MAX($W100:$AA100)-Y100)/2 -> 9.5 | AF100: =(MAX($W100:$AA100)-Z100)/2 -> 0 | AG100: =(MAX($W100:$AA100)-AA100)/2 -> 10
A101: 2011-07-07 | B101: 1 | C101: 53 | D101: 36 | F101: 1 | G101: 40 | H101: 48 | J101: -1 | K101: 45 | L101: 43 | O101: 55 | P101: 33 | R101: -1 | S101: 45 | T101: 44 | W101: =C101-D101 -> 17 | X101: =G101-H101 -> -8 | Y101: =K101-L101 -> 2 | Z101: =O101-P101 -> 22 | AA101: =S101-T101 -> 1 | AC101: =(MAX($W101:$AA101)-W101)/2 -> 2.5 | AD101: =(MAX($W101:$AA101)-X101)/2 -> 15 | AE101: =(MAX($W101:$AA101)-Y101)/2 -> 10 | AF101: =(MAX($W101:$AA101)-Z101)/2 -> 0 | AG101: =(MAX($W101:$AA101)-AA101)/2 -> 10.5
A102: 2011-07-08 | B102: -1 | C102: 53 | D102: 37 | F102: 1 | G102: 41 | H102: 48 | J102: 1 | K102: 46 | L102: 43 | N102: 1 | O102: 56 | P102: 33 | R102: -1 | S102: 45 | T102: 45 | W102: =C102-D102 -> 16 | X102: =G102-H102 -> -7 | Y102: =K102-L102 -> 3 | Z102: =O102-P102 -> 23 | AA102: =S102-T102 -> 0 | AC102: =(MAX($W102:$AA102)-W102)/2 -> 3.5 | AD102: =(MAX($W102:$AA102)-X102)/2 -> 15 | AE102: =(MAX($W102:$AA102)-Y102)/2 -> 10 | AF102: =(MAX($W102:$AA102)-Z102)/2 -> 0 | AG102: =(MAX($W102:$AA102)-AA102)/2 -> 11.5
A103: 2011-07-09 | B103: 1 | C103: =C102+IF(B103>0,B103,0) -> 54 | D103: =D102-IF(B103<0,B103,0) -> 37 | F103: 1 | G103: =G102+IF(F103>0,F103,0) -> 42 | H103: =H102-IF(F103<0,F103,0) -> 48 | J103: -1 | K103: =K102+IF(J103>0,J103,0) -> 46 | L103: =L102-IF(J103<0,J103,0) -> 44 | N103: -1 | O103: =O102+IF(N103>0,N103,0) -> 56 | P103: =P102-IF(N103<0,N103,0) -> 34 | R103: -1 | S103: 45 | T103: 46 | W103: =C103-D103 -> 17 | X103: =G103-H103 -> -6 | Y103: =K103-L103 -> 2 | Z103: =O103-P103 -> 22 | AA103: =S103-T103 -> -1 | AC103: =(MAX($W103:$AA103)-W103)/2 -> 2.5 | AD103: =(MAX($W103:$AA103)-X103)/2 -> 14 | AE103: =(MAX($W103:$AA103)-Y103)/2 -> 10 | AF103: =(MAX($W103:$AA103)-Z103)/2 -> 0 | AG103: =(MAX($W103:$AA103)-AA103)/2 -> 11.5
A104: 2011-07-10 | B104: -1 | C104: 54 | D104: 38 | F104: 1 | G104: 43 | H104: 48 | J104: -1 | K104: 46 | L104: 45 | N104: 1 | O104: 57 | P104: 34 | R104: 1 | S104: 46 | T104: 46 | W104: =C104-D104 -> 16 | X104: =G104-H104 -> -5 | Y104: =K104-L104 -> 1 | Z104: =O104-P104 -> 23 | AA104: =S104-T104 -> 0 | AC104: =(MAX($W104:$AA104)-W104)/2 -> 3.5 | AD104: =(MAX($W104:$AA104)-X104)/2 -> 14 | AE104: =(MAX($W104:$AA104)-Y104)/2 -> 11 | AF104: =(MAX($W104:$AA104)-Z104)/2 -> 0 | AG104: =(MAX($W104:$AA104)-AA104)/2 -> 11.5
A105: 2011-07-11 | C105: 54 | D105: 38 | G105: 43 | H105: 48 | K105: 46 | L105: 45 | O105: 57 | P105: 34 | S105: 46 | T105: 46 | W105: =C105-D105 -> 16 | X105: =G105-H105 -> -5 | Y105: =K105-L105 -> 1 | Z105: =O105-P105 -> 23 | AA105: =S105-T105 -> 0 | AC105: =(MAX($W105:$AA105)-W105)/2 -> 3.5 | AD105: =(MAX($W105:$AA105)-X105)/2 -> 14 | AE105: =(MAX($W105:$AA105)-Y105)/2 -> 11 | AF105: =(MAX($W105:$AA105)-Z105)/2 -> 0 | AG105: =(MAX($W105:$AA105)-AA105)/2 -> 11.5
A106: 2011-07-12 | C106: 54 | D106: 38 | G106: 43 | H106: 48 | K106: 46 | L106: 45 | O106: 57 | P106: 34 | S106: 46 | T106: 46 | W106: =C106-D106 -> 16 | X106: =G106-H106 -> -5 | Y106: =K106-L106 -> 1 | Z106: =O106-P106 -> 23 | AA106: =S106-T106 -> 0 | AC106: =(MAX($W106:$AA106)-W106)/2 -> 3.5 | AD106: =(MAX($W106:$AA106)-X106)/2 -> 14 | AE106: =(MAX($W106:$AA106)-Y106)/2 -> 11 | AF106: =(MAX($W106:$AA106)-Z106)/2 -> 0 | AG106: =(MAX($W106:$AA106)-AA106)/2 -> 11.5
A107: 2011-07-13 | C107: 54 | D107: 38 | G107: 43 | H107: 48 | K107: 46 | L107: 45 | O107: 57 | P107: 34 | S107: 46 | T107: 46 | W107: =C107-D107 -> 16 | X107: =G107-H107 -> -5 | Y107: =K107-L107 -> 1 | Z107: =O107-P107 -> 23 | AA107: =S107-T107 -> 0 | AC107: =(MAX($W107:$AA107)-W107)/2 -> 3.5 | AD107: =(MAX($W107:$AA107)-X107)/2 -> 14 | AE107: =(MAX($W107:$AA107)-Y107)/2 -> 11 | AF107: =(MAX($W107:$AA107)-Z107)/2 -> 0 | AG107: =(MAX($W107:$AA107)-AA107)/2 -> 11.5
A108: 2011-07-14 | C108: 54 | D108: 38 | F108: 1 | G108: 44 | H108: 48 | K108: 46 | L108: 45 | O108: 57 | P108: 34 | S108: 46 | T108: 46 | W108: =C108-D108 -> 16 | X108: =G108-H108 -> -4 | Y108: =K108-L108 -> 1 | Z108: =O108-P108 -> 23 | AA108: =S108-T108 -> 0 | AC108: =(MAX($W108:$AA108)-W108)/2 -> 3.5 | AD108: =(MAX($W108:$AA108)-X108)/2 -> 13.5 | AE108: =(MAX($W108:$AA108)-Y108)/2 -> 11 | AF108: =(MAX($W108:$AA108)-Z108)/2 -> 0 | AG108: =(MAX($W108:$AA108)-AA108)/2 -> 11.5
A109: 2011-07-15 | B109: 1 | C109: 55 | D109: 38 | F109: -1 | G109: 44 | H109: 49 | J109: -1 | K109: 46 | L109: 46 | N109: 1 | O109: 58 | P109: 34 | R109: -1 | S109: 46 | T109: 47 | W109: =C109-D109 -> 17 | X109: =G109-H109 -> -5 | Y109: =K109-L109 -> 0 | Z109: =O109-P109 -> 24 | AA109: =S109-T109 -> -1 | AC109: =(MAX($W109:$AA109)-W109)/2 -> 3.5 | AD109: =(MAX($W109:$AA109)-X109)/2 -> 14.5 | AE109: =(MAX($W109:$AA109)-Y109)/2 -> 12 | AF109: =(MAX($W109:$AA109)-Z109)/2 -> 0 | AG109: =(MAX($W109:$AA109)-AA109)/2 -> 12.5
A110: 2011-07-16 | B110: -1 | C110: 55 | D110: 39 | F110: 1 | G110: 45 | H110: 49 | J110: 1 | K110: 47 | L110: 46 | N110: -1 | O110: 58 | P110: 35 | R110: 1 | S110: =S109+IF(R110>0,R110,0) -> 47 | T110: =T109-IF(R110<0,R110,0) -> 47 | W110: =C110-D110 -> 16 | X110: =G110-H110 -> -4 | Y110: =K110-L110 -> 1 | Z110: =O110-P110 -> 23 | AA110: =S110-T110 -> 0 | AC110: =(MAX($W110:$AA110)-W110)/2 -> 3.5 | AD110: =(MAX($W110:$AA110)-X110)/2 -> 13.5 | AE110: =(MAX($W110:$AA110)-Y110)/2 -> 11 | AF110: =(MAX($W110:$AA110)-Z110)/2 -> 0 | AG110: =(MAX($W110:$AA110)-AA110)/2 -> 11.5
A111: 2011-07-17 | B111: 1 | C111: 56 | D111: 39 | F111: 1 | G111: 46 | H111: 49 | J111: -1 | K111: 47 | L111: 47 | N111: 1 | O111: 59 | P111: 35 | R111: -1 | S111: 47 | T111: 48 | W111: =C111-D111 -> 17 | X111: =G111-H111 -> -3 | Y111: =K111-L111 -> 0 | Z111: =O111-P111 -> 24 | AA111: =S111-T111 -> -1 | AC111: =(MAX($W111:$AA111)-W111)/2 -> 3.5 | AD111: =(MAX($W111:$AA111)-X111)/2 -> 13.5 | AE111: =(MAX($W111:$AA111)-Y111)/2 -> 12 | AF111: =(MAX($W111:$AA111)-Z111)/2 -> 0 | AG111: =(MAX($W111:$AA111)-AA111)/2 -> 12.5
A112: 2011-07-18 | B112: 1 | C112: 57 | D112: 39 | F112: 1 | G112: 47 | H112: 49 | J112: -1 | K112: 47 | L112: 48 | N112: -1 | O112: 59 | P112: 36 | R112: 1 | S112: 48 | T112: 48 | W112: =C112-D112 -> 18 | X112: =G112-H112 -> -2 | Y112: =K112-L112 -> -1 | Z112: =O112-P112 -> 23 | AA112: =S112-T112 -> 0 | AC112: =(MAX($W112:$AA112)-W112)/2 -> 2.5 | AD112: =(MAX($W112:$AA112)-X112)/2 -> 12.5 | AE112: =(MAX($W112:$AA112)-Y112)/2 -> 12 | AF112: =(MAX($W112:$AA112)-Z112)/2 -> 0 | AG112: =(MAX($W112:$AA112)-AA112)/2 -> 11.5
A113: 2011-07-19 | B113: -1 | C113: 57 | D113: 40 | F113: -1 | G113: 47 | H113: 50 | J113: 1 | K113: 48 | L113: 48 | N113: 1 | O113: 60 | P113: 36 | R113: -1 | S113: 48 | T113: 49 | W113: =C113-D113 -> 17 | X113: =G113-H113 -> -3 | Y113: =K113-L113 -> 0 | Z113: =O113-P113 -> 24 | AA113: =S113-T113 -> -1 | AC113: =(MAX($W113:$AA113)-W113)/2 -> 3.5 | AD113: =(MAX($W113:$AA113)-X113)/2 -> 13.5 | AE113: =(MAX($W113:$AA113)-Y113)/2 -> 12 | AF113: =(MAX($W113:$AA113)-Z113)/2 -> 0 | AG113: =(MAX($W113:$AA113)-AA113)/2 -> 12.5
A114: 2011-07-20 | B114: -1 | C114: 57 | D114: 41 | F114: -1 | G114: 47 | H114: 51 | J114: 1 | K114: 49 | L114: 48 | N114: 1 | O114: 61 | P114: 36 | R114: -1 | S114: 48 | T114: 50 | W114: =C114-D114 -> 16 | X114: =G114-H114 -> -4 | Y114: =K114-L114 -> 1 | Z114: =O114-P114 -> 25 | AA114: =S114-T114 -> -2 | AC114: =(MAX($W114:$AA114)-W114)/2 -> 4.5 | AD114: =(MAX($W114:$AA114)-X114)/2 -> 14.5 | AE114: =(MAX($W114:$AA114)-Y114)/2 -> 12 | AF114: =(MAX($W114:$AA114)-Z114)/2 -> 0 | AG114: =(MAX($W114:$AA114)-AA114)/2 -> 13.5
A115: 2011-07-21 | B115: 1 | C115: 58 | D115: 41 | F115: -1 | G115: 47 | H115: 52 | J115: -1 | K115: 49 | L115: 49 | O115: 61 | P115: 36 | S115: 48 | T115: 50 | W115: =C115-D115 -> 17 | X115: =G115-H115 -> -5 | Y115: =K115-L115 -> 0 | Z115: =O115-P115 -> 25 | AA115: =S115-T115 -> -2 | AC115: =(MAX($W115:$AA115)-W115)/2 -> 4 | AD115: =(MAX($W115:$AA115)-X115)/2 -> 15 | AE115: =(MAX($W115:$AA115)-Y115)/2 -> 12.5 | AF115: =(MAX($W115:$AA115)-Z115)/2 -> 0 | AG115: =(MAX($W115:$AA115)-AA115)/2 -> 13.5
A116: 2011-07-22 | B116: 1 | C116: 59 | D116: 41 | F116: -1 | G116: 47 | H116: 53 | J116: 1 | K116: 50 | L116: 49 | N116: 1 | O116: 62 | P116: 36 | R116: 1 | S116: 49 | T116: 50 | W116: =C116-D116 -> 18 | X116: =G116-H116 -> -6 | Y116: =K116-L116 -> 1 | Z116: =O116-P116 -> 26 | AA116: =S116-T116 -> -1 | AC116: =(MAX($W116:$AA116)-W116)/2 -> 4 | AD116: =(MAX($W116:$AA116)-X116)/2 -> 16 | AE116: =(MAX($W116:$AA116)-Y116)/2 -> 12.5 | AF116: =(MAX($W116:$AA116)-Z116)/2 -> 0 | AG116: =(MAX($W116:$AA116)-AA116)/2 -> 13.5
A117: 2011-07-23 | B117: -1 | C117: 59 | D117: 42 | F117: 1 | G117: 48 | H117: 53 | J117: -1 | K117: 50 | L117: 50 | N117: 1 | O117: 63 | P117: 36 | R117: -1 | S117: 49 | T117: 51 | W117: =C117-D117 -> 17 | X117: =G117-H117 -> -5 | Y117: =K117-L117 -> 0 | Z117: =O117-P117 -> 27 | AA117: =S117-T117 -> -2 | AC117: =(MAX($W117:$AA117)-W117)/2 -> 5 | AD117: =(MAX($W117:$AA117)-X117)/2 -> 16 | AE117: =(MAX($W117:$AA117)-Y117)/2 -> 13.5 | AF117: =(MAX($W117:$AA117)-Z117)/2 -> 0 | AG117: =(MAX($W117:$AA117)-AA117)/2 -> 14.5
A118: 2011-07-24 | B118: -1 | C118: 59 | D118: 43 | F118: 1 | G118: 49 | H118: 53 | J118: -1 | K118: 50 | L118: 51 | N118: 1 | O118: 64 | P118: 36 | R118: -1 | S118: 49 | T118: 52 | W118: =C118-D118 -> 16 | X118: =G118-H118 -> -4 | Y118: =K118-L118 -> -1 | Z118: =O118-P118 -> 28 | AA118: =S118-T118 -> -3 | AC118: =(MAX($W118:$AA118)-W118)/2 -> 6 | AD118: =(MAX($W118:$AA118)-X118)/2 -> 16 | AE118: =(MAX($W118:$AA118)-Y118)/2 -> 14.5 | AF118: =(MAX($W118:$AA118)-Z118)/2 -> 0 | AG118: =(MAX($W118:$AA118)-AA118)/2 -> 15.5
A119: 2011-07-25 | B119: -1 | C119: 59 | D119: 44 | G119: 49 | H119: 53 | J119: 1 | K119: 51 | L119: 51 | N119: -1 | O119: 64 | P119: 37 | S119: 49 | T119: 52 | W119: =C119-D119 -> 15 | X119: =G119-H119 -> -4 | Y119: =K119-L119 -> 0 | Z119: =O119-P119 -> 27 | AA119: =S119-T119 -> -3 | AC119: =(MAX($W119:$AA119)-W119)/2 -> 6 | AD119: =(MAX($W119:$AA119)-X119)/2 -> 15.5 | AE119: =(MAX($W119:$AA119)-Y119)/2 -> 13.5 | AF119: =(MAX($W119:$AA119)-Z119)/2 -> 0 | AG119: =(MAX($W119:$AA119)-AA119)/2 -> 15
A120: 2011-07-26 | B120: 1 | C120: 60 | D120: 44 | F120: 1 | G120: 50 | H120: 53 | J120: 1 | K120: 52 | L120: 51 | N120: 1 | O120: 65 | P120: 37 | R120: -1 | S120: 49 | T120: 53 | W120: =C120-D120 -> 16 | X120: =G120-H120 -> -3 | Y120: =K120-L120 -> 1 | Z120: =O120-P120 -> 28 | AA120: =S120-T120 -> -4 | AC120: =(MAX($W120:$AA120)-W120)/2 -> 6 | AD120: =(MAX($W120:$AA120)-X120)/2 -> 15.5 | AE120: =(MAX($W120:$AA120)-Y120)/2 -> 13.5 | AF120: =(MAX($W120:$AA120)-Z120)/2 -> 0 | AG120: =(MAX($W120:$AA120)-AA120)/2 -> 16
A121: 2011-07-27 | B121: 1 | C121: 61 | D121: 44 | F121: 1 | G121: 51 | H121: 53 | J121: 1 | K121: 53 | L121: 51 | N121: -1 | O121: 65 | P121: 38 | R121: -1 | S121: 49 | T121: 54 | W121: =C121-D121 -> 17 | X121: =G121-H121 -> -2 | Y121: =K121-L121 -> 2 | Z121: =O121-P121 -> 27 | AA121: =S121-T121 -> -5 | AC121: =(MAX($W121:$AA121)-W121)/2 -> 5 | AD121: =(MAX($W121:$AA121)-X121)/2 -> 14.5 | AE121: =(MAX($W121:$AA121)-Y121)/2 -> 12.5 | AF121: =(MAX($W121:$AA121)-Z121)/2 -> 0 | AG121: =(MAX($W121:$AA121)-AA121)/2 -> 16
A122: 2011-07-28 | B122: -1 | C122: 61 | D122: 45 | F122: 1 | G122: 52 | H122: 53 | J122: 1 | K122: 54 | L122: 51 | N122: -1 | O122: 65 | P122: 39 | R122: -1 | S122: 49 | T122: 55 | W122: =C122-D122 -> 16 | X122: =G122-H122 -> -1 | Y122: =K122-L122 -> 3 | Z122: =O122-P122 -> 26 | AA122: =S122-T122 -> -6 | AC122: =(MAX($W122:$AA122)-W122)/2 -> 5 | AD122: =(MAX($W122:$AA122)-X122)/2 -> 13.5 | AE122: =(MAX($W122:$AA122)-Y122)/2 -> 11.5 | AF122: =(MAX($W122:$AA122)-Z122)/2 -> 0 | AG122: =(MAX($W122:$AA122)-AA122)/2 -> 16
A123: 2011-07-29 | B123: 1 | C123: 62 | D123: 45 | F123: -1 | G123: 52 | H123: 54 | J123: 1 | K123: 55 | L123: 51 | N123: 1 | O123: 66 | P123: 39 | R123: -1 | S123: 49 | T123: 56 | W123: =C123-D123 -> 17 | X123: =G123-H123 -> -2 | Y123: =K123-L123 -> 4 | Z123: =O123-P123 -> 27 | AA123: =S123-T123 -> -7 | AC123: =(MAX($W123:$AA123)-W123)/2 -> 5 | AD123: =(MAX($W123:$AA123)-X123)/2 -> 14.5 | AE123: =(MAX($W123:$AA123)-Y123)/2 -> 11.5 | AF123: =(MAX($W123:$AA123)-Z123)/2 -> 0 | AG123: =(MAX($W123:$AA123)-AA123)/2 -> 17
A124: 2011-07-30 | B124: 1 | C124: 63 | D124: 45 | F124: -1 | G124: 52 | H124: 55 | J124: -1 | K124: 55 | L124: 52 | N124: 1 | O124: 67 | P124: 39 | R124: 1 | S124: 50 | T124: 56 | W124: =C124-D124 -> 18 | X124: =G124-H124 -> -3 | Y124: =K124-L124 -> 3 | Z124: =O124-P124 -> 28 | AA124: =S124-T124 -> -6 | AC124: =(MAX($W124:$AA124)-W124)/2 -> 5 | AD124: =(MAX($W124:$AA124)-X124)/2 -> 15.5 | AE124: =(MAX($W124:$AA124)-Y124)/2 -> 12.5 | AF124: =(MAX($W124:$AA124)-Z124)/2 -> 0 | AG124: =(MAX($W124:$AA124)-AA124)/2 -> 17
A125: 2011-07-31 | B125: -1 | C125: 63 | D125: 46 | F125: 1 | G125: 53 | H125: 55 | J125: -1 | K125: 55 | L125: 53 | N125: 1 | O125: 68 | P125: 39 | R125: 1 | S125: 51 | T125: 56 | W125: =C125-D125 -> 17 | X125: =G125-H125 -> -2 | Y125: =K125-L125 -> 2 | Z125: =O125-P125 -> 29 | AA125: =S125-T125 -> -5 | AC125: =(MAX($W125:$AA125)-W125)/2 -> 6 | AD125: =(MAX($W125:$AA125)-X125)/2 -> 15.5 | AE125: =(MAX($W125:$AA125)-Y125)/2 -> 13.5 | AF125: =(MAX($W125:$AA125)-Z125)/2 -> 0 | AG125: =(MAX($W125:$AA125)-AA125)/2 -> 17
A126: 2011-08-01 | B126: -1 | C126: 63 | D126: 47 | F126: 1 | G126: 54 | H126: 55 | J126: -1 | K126: 55 | L126: 54 | N126: 1 | O126: 69 | P126: 39 | R126: 1 | S126: 52 | T126: 56 | W126: =C126-D126 -> 16 | X126: =G126-H126 -> -1 | Y126: =K126-L126 -> 1 | Z126: =O126-P126 -> 30 | AA126: =S126-T126 -> -4 | AC126: =(MAX($W126:$AA126)-W126)/2 -> 7 | AD126: =(MAX($W126:$AA126)-X126)/2 -> 15.5 | AE126: =(MAX($W126:$AA126)-Y126)/2 -> 14.5 | AF126: =(MAX($W126:$AA126)-Z126)/2 -> 0 | AG126: =(MAX($W126:$AA126)-AA126)/2 -> 17
A127: 2011-08-02 | B127: -1 | C127: 63 | D127: 48 | F127: 1 | G127: 55 | H127: 55 | J127: -1 | K127: 55 | L127: 55 | N127: 1 | O127: 70 | P127: 39 | R127: 1 | S127: 53 | T127: 56 | W127: =C127-D127 -> 15 | X127: =G127-H127 -> 0 | Y127: =K127-L127 -> 0 | Z127: =O127-P127 -> 31 | AA127: =S127-T127 -> -3 | AC127: =(MAX($W127:$AA127)-W127)/2 -> 8 | AD127: =(MAX($W127:$AA127)-X127)/2 -> 15.5 | AE127: =(MAX($W127:$AA127)-Y127)/2 -> 15.5 | AF127: =(MAX($W127:$AA127)-Z127)/2 -> 0 | AG127: =(MAX($W127:$AA127)-AA127)/2 -> 17
A128: 2011-08-03 | B128: 1 | C128: 64 | D128: 48 | G128: 55 | H128: 55 | K128: 55 | L128: 55 | N128: 1 | O128: 71 | P128: 39 | R128: -1 | S128: 53 | T128: 57 | W128: =C128-D128 -> 16 | X128: =G128-H128 -> 0 | Y128: =K128-L128 -> 0 | Z128: =O128-P128 -> 32 | AA128: =S128-T128 -> -4 | AC128: =(MAX($W128:$AA128)-W128)/2 -> 8 | AD128: =(MAX($W128:$AA128)-X128)/2 -> 16 | AE128: =(MAX($W128:$AA128)-Y128)/2 -> 16 | AF128: =(MAX($W128:$AA128)-Z128)/2 -> 0 | AG128: =(MAX($W128:$AA128)-AA128)/2 -> 18
A129: 2011-08-04 | C129: 64 | D129: 48 | F129: -1 | G129: 55 | H129: 56 | K129: 55 | L129: 55 | N129: 1 | O129: 72 | P129: 39 | R129: -1 | S129: 53 | T129: 58 | W129: =C129-D129 -> 16 | X129: =G129-H129 -> -1 | Y129: =K129-L129 -> 0 | Z129: =O129-P129 -> 33 | AA129: =S129-T129 -> -5 | AC129: =(MAX($W129:$AA129)-W129)/2 -> 8.5 | AD129: =(MAX($W129:$AA129)-X129)/2 -> 17 | AE129: =(MAX($W129:$AA129)-Y129)/2 -> 16.5 | AF129: =(MAX($W129:$AA129)-Z129)/2 -> 0 | AG129: =(MAX($W129:$AA129)-AA129)/2 -> 19
A130: 2011-08-05 | B130: 1 | C130: 65 | D130: 48 | F130: -1 | G130: 55 | H130: 57 | J130: -1 | K130: 55 | L130: 56 | N130: 1 | O130: 73 | P130: 39 | R130: 1 | S130: 54 | T130: 58 | W130: =C130-D130 -> 17 | X130: =G130-H130 -> -2 | Y130: =K130-L130 -> -1 | Z130: =O130-P130 -> 34 | AA130: =S130-T130 -> -4 | AC130: =(MAX($W130:$AA130)-W130)/2 -> 8.5 | AD130: =(MAX($W130:$AA130)-X130)/2 -> 18 | AE130: =(MAX($W130:$AA130)-Y130)/2 -> 17.5 | AF130: =(MAX($W130:$AA130)-Z130)/2 -> 0 | AG130: =(MAX($W130:$AA130)-AA130)/2 -> 19
A131: 2011-08-06 | B131: -1 | C131: 65 | D131: 49 | F131: -1 | G131: 55 | H131: 58 | J131: 1 | K131: 56 | L131: 56 | N131: 1 | O131: 74 | P131: 39 | R131: -1 | S131: 54 | T131: 59 | W131: =C131-D131 -> 16 | X131: =G131-H131 -> -3 | Y131: =K131-L131 -> 0 | Z131: =O131-P131 -> 35 | AA131: =S131-T131 -> -5 | AC131: =(MAX($W131:$AA131)-W131)/2 -> 9.5 | AD131: =(MAX($W131:$AA131)-X131)/2 -> 19 | AE131: =(MAX($W131:$AA131)-Y131)/2 -> 17.5 | AF131: =(MAX($W131:$AA131)-Z131)/2 -> 0 | AG131: =(MAX($W131:$AA131)-AA131)/2 -> 20
A132: 2011-08-07 | B132: 1 | C132: 66 | D132: 49 | F132: -1 | G132: 55 | H132: 59 | J132: -1 | K132: 56 | L132: 57 | N132: -1 | O132: 74 | P132: 40 | R132: 1 | S132: 55 | T132: 59 | W132: =C132-D132 -> 17 | X132: =G132-H132 -> -4 | Y132: =K132-L132 -> -1 | Z132: =O132-P132 -> 34 | AA132: =S132-T132 -> -4 | AC132: =(MAX($W132:$AA132)-W132)/2 -> 8.5 | AD132: =(MAX($W132:$AA132)-X132)/2 -> 19 | AE132: =(MAX($W132:$AA132)-Y132)/2 -> 17.5 | AF132: =(MAX($W132:$AA132)-Z132)/2 -> 0 | AG132: =(MAX($W132:$AA132)-AA132)/2 -> 19
A133: 2011-08-08 | B133: 1 | C133: 67 | D133: 49 | F133: -1 | G133: 55 | H133: 60 | J133: 1 | K133: 57 | L133: 57 | N133: 1 | O133: 75 | P133: 40 | S133: 55 | T133: 59 | W133: =C133-D133 -> 18 | X133: =G133-H133 -> -5 | Y133: =K133-L133 -> 0 | Z133: =O133-P133 -> 35 | AA133: =S133-T133 -> -4 | AC133: =(MAX($W133:$AA133)-W133)/2 -> 8.5 | AD133: =(MAX($W133:$AA133)-X133)/2 -> 20 | AE133: =(MAX($W133:$AA133)-Y133)/2 -> 17.5 | AF133: =(MAX($W133:$AA133)-Z133)/2 -> 0 | AG133: =(MAX($W133:$AA133)-AA133)/2 -> 19.5
A134: 2011-08-09 | B134: 1 | C134: 68 | D134: 49 | F134: -1 | G134: 55 | H134: 61 | J134: 1 | K134: 58 | L134: 57 | N134: 1 | O134: 76 | P134: 40 | R134: 1 | S134: 56 | T134: 59 | W134: =C134-D134 -> 19 | X134: =G134-H134 -> -6 | Y134: =K134-L134 -> 1 | Z134: =O134-P134 -> 36 | AA134: =S134-T134 -> -3 | AC134: =(MAX($W134:$AA134)-W134)/2 -> 8.5 | AD134: =(MAX($W134:$AA134)-X134)/2 -> 21 | AE134: =(MAX($W134:$AA134)-Y134)/2 -> 17.5 | AF134: =(MAX($W134:$AA134)-Z134)/2 -> 0 | AG134: =(MAX($W134:$AA134)-AA134)/2 -> 19.5
A135: 2011-08-10 | B135: 1 | C135: =C134+IF(B135>0,B135,0) -> 69 | D135: =D134-IF(B135<0,B135,0) -> 49 | F135: -1 | G135: =G134+IF(F135>0,F135,0) -> 55 | H135: =H134-IF(F135<0,F135,0) -> 62 | J135: -1 | K135: =K134+IF(J135>0,J135,0) -> 58 | L135: =L134-IF(J135<0,J135,0) -> 58 | N135: 1 | O135: =O134+IF(N135>0,N135,0) -> 77 | P135: =P134-IF(N135<0,N135,0) -> 40 | R135: -1 | S135: 56 | T135: 60 | W135: =C135-D135 -> 20 | X135: =G135-H135 -> -7 | Y135: =K135-L135 -> 0 | Z135: =O135-P135 -> 37 | AA135: =S135-T135 -> -4 | AC135: =(MAX($W135:$AA135)-W135)/2 -> 8.5 | AD135: =(MAX($W135:$AA135)-X135)/2 -> 22 | AE135: =(MAX($W135:$AA135)-Y135)/2 -> 18.5 | AF135: =(MAX($W135:$AA135)-Z135)/2 -> 0 | AG135: =(MAX($W135:$AA135)-AA135)/2 -> 20.5
A136: 2011-08-11 | C136: 69 | D136: 49 | G136: 55 | H136: 62 | J136: -1 | K136: 58 | L136: 59 | O136: 77 | P136: 40 | R136: -1 | S136: 56 | T136: 61 | W136: =C136-D136 -> 20 | X136: =G136-H136 -> -7 | Y136: =K136-L136 -> -1 | Z136: =O136-P136 -> 37 | AA136: =S136-T136 -> -5 | AC136: =(MAX($W136:$AA136)-W136)/2 -> 8.5 | AD136: =(MAX($W136:$AA136)-X136)/2 -> 22 | AE136: =(MAX($W136:$AA136)-Y136)/2 -> 19 | AF136: =(MAX($W136:$AA136)-Z136)/2 -> 0 | AG136: =(MAX($W136:$AA136)-AA136)/2 -> 21
A137: 2011-08-12 | B137: 1 | C137: 70 | D137: 49 | F137: 1 | G137: 56 | H137: 62 | J137: -1 | K137: 58 | L137: 60 | N137: -1 | O137: 77 | P137: 41 | R137: 1 | S137: 57 | T137: 61 | W137: =C137-D137 -> 21 | X137: =G137-H137 -> -6 | Y137: =K137-L137 -> -2 | Z137: =O137-P137 -> 36 | AA137: =S137-T137 -> -4 | AC137: =(MAX($W137:$AA137)-W137)/2 -> 7.5 | AD137: =(MAX($W137:$AA137)-X137)/2 -> 21 | AE137: =(MAX($W137:$AA137)-Y137)/2 -> 19 | AF137: =(MAX($W137:$AA137)-Z137)/2 -> 0 | AG137: =(MAX($W137:$AA137)-AA137)/2 -> 20
A138: 2011-08-13 | B138: -1 | C138: 70 | D138: 50 | F138: -1 | G138: 56 | H138: 63 | J138: -1 | K138: 58 | L138: 61 | N138: 1 | O138: 78 | P138: 41 | R138: -1 | S138: 57 | T138: 62 | W138: =C138-D138 -> 20 | X138: =G138-H138 -> -7 | Y138: =K138-L138 -> -3 | Z138: =O138-P138 -> 37 | AA138: =S138-T138 -> -5 | AC138: =(MAX($W138:$AA138)-W138)/2 -> 8.5 | AD138: =(MAX($W138:$AA138)-X138)/2 -> 22 | AE138: =(MAX($W138:$AA138)-Y138)/2 -> 20 | AF138: =(MAX($W138:$AA138)-Z138)/2 -> 0 | AG138: =(MAX($W138:$AA138)-AA138)/2 -> 21
A139: 2011-08-14 | B139: -1 | C139: 70 | D139: 51 | F139: -1 | G139: 56 | H139: 64 | J139: -1 | K139: 58 | L139: 62 | O139: 78 | P139: 41 | S139: 57 | T139: 62 | W139: =C139-D139 -> 19 | X139: =G139-H139 -> -8 | Y139: =K139-L139 -> -4 | Z139: =O139-P139 -> 37 | AA139: =S139-T139 -> -5 | AC139: =(MAX($W139:$AA139)-W139)/2 -> 9 | AD139: =(MAX($W139:$AA139)-X139)/2 -> 22.5 | AE139: =(MAX($W139:$AA139)-Y139)/2 -> 20.5 | AF139: =(MAX($W139:$AA139)-Z139)/2 -> 0 | AG139: =(MAX($W139:$AA139)-AA139)/2 -> 21
A140: 2011-08-15 | B140: 1 | C140: 71 | D140: 51 | F140: -1 | G140: 56 | H140: 65 | J140: 1 | K140: 59 | L140: 62 | O140: 78 | P140: 41 | S140: 57 | T140: 62 | W140: =C140-D140 -> 20 | X140: =G140-H140 -> -9 | Y140: =K140-L140 -> -3 | Z140: =O140-P140 -> 37 | AA140: =S140-T140 -> -5 | AC140: =(MAX($W140:$AA140)-W140)/2 -> 8.5 | AD140: =(MAX($W140:$AA140)-X140)/2 -> 23 | AE140: =(MAX($W140:$AA140)-Y140)/2 -> 20 | AF140: =(MAX($W140:$AA140)-Z140)/2 -> 0 | AG140: =(MAX($W140:$AA140)-AA140)/2 -> 21
A141: 2011-08-16 | B141: 1 | C141: 72 | D141: 51 | F141: 1 | G141: 57 | H141: 65 | J141: -1 | K141: 59 | L141: 63 | N141: -1 | O141: 78 | P141: 42 | R141: 1 | S141: 58 | T141: 62 | W141: =C141-D141 -> 21 | X141: =G141-H141 -> -8 | Y141: =K141-L141 -> -4 | Z141: =O141-P141 -> 36 | AA141: =S141-T141 -> -4 | AC141: =(MAX($W141:$AA141)-W141)/2 -> 7.5 | AD141: =(MAX($W141:$AA141)-X141)/2 -> 22 | AE141: =(MAX($W141:$AA141)-Y141)/2 -> 20 | AF141: =(MAX($W141:$AA141)-Z141)/2 -> 0 | AG141: =(MAX($W141:$AA141)-AA141)/2 -> 20
A142: 2011-08-17 | B142: -1 | C142: 72 | D142: 52 | F142: -1 | G142: 57 | H142: 66 | J142: 1 | K142: 60 | L142: 63 | N142: 1 | O142: 79 | P142: 42 | R142: -1 | S142: =S141+IF(R142>0,R142,0) -> 58 | T142: =T141-IF(R142<0,R142,0) -> 63 | W142: =C142-D142 -> 20 | X142: =G142-H142 -> -9 | Y142: =K142-L142 -> -3 | Z142: =O142-P142 -> 37 | AA142: =S142-T142 -> -5 | AC142: =(MAX($W142:$AA142)-W142)/2 -> 8.5 | AD142: =(MAX($W142:$AA142)-X142)/2 -> 23 | AE142: =(MAX($W142:$AA142)-Y142)/2 -> 20 | AF142: =(MAX($W142:$AA142)-Z142)/2 -> 0 | AG142: =(MAX($W142:$AA142)-AA142)/2 -> 21
A143: 2011-08-18 | B143: 1 | C143: 73 | D143: 52 | F143: -1 | G143: 57 | H143: 67 | K143: 60 | L143: 63 | N143: 1 | O143: 80 | P143: 42 | R143: 1 | S143: 59 | T143: 63 | W143: =C143-D143 -> 21 | X143: =G143-H143 -> -10 | Y143: =K143-L143 -> -3 | Z143: =O143-P143 -> 38 | AA143: =S143-T143 -> -4 | AC143: =(MAX($W143:$AA143)-W143)/2 -> 8.5 | AD143: =(MAX($W143:$AA143)-X143)/2 -> 24 | AE143: =(MAX($W143:$AA143)-Y143)/2 -> 20.5 | AF143: =(MAX($W143:$AA143)-Z143)/2 -> 0 | AG143: =(MAX($W143:$AA143)-AA143)/2 -> 21
A144: 2011-08-19 | B144: 1 | C144: 74 | D144: 52 | F144: -1 | G144: 57 | H144: 68 | J144: -1 | K144: 60 | L144: 64 | N144: -1 | O144: 80 | P144: 43 | R144: 1 | S144: 60 | T144: 63 | W144: =C144-D144 -> 22 | X144: =G144-H144 -> -11 | Y144: =K144-L144 -> -4 | Z144: =O144-P144 -> 37 | AA144: =S144-T144 -> -3 | AC144: =(MAX($W144:$AA144)-W144)/2 -> 7.5 | AD144: =(MAX($W144:$AA144)-X144)/2 -> 24 | AE144: =(MAX($W144:$AA144)-Y144)/2 -> 20.5 | AF144: =(MAX($W144:$AA144)-Z144)/2 -> 0 | AG144: =(MAX($W144:$AA144)-AA144)/2 -> 20
A145: 2011-08-20 | B145: 1 | C145: 75 | D145: 52 | F145: -1 | G145: 57 | H145: 69 | J145: -1 | K145: 60 | L145: 65 | N145: 1 | O145: 81 | P145: 43 | R145: -1 | S145: 60 | T145: 64 | W145: =C145-D145 -> 23 | X145: =G145-H145 -> -12 | Y145: =K145-L145 -> -5 | Z145: =O145-P145 -> 38 | AA145: =S145-T145 -> -4 | AC145: =(MAX($W145:$AA145)-W145)/2 -> 7.5 | AD145: =(MAX($W145:$AA145)-X145)/2 -> 25 | AE145: =(MAX($W145:$AA145)-Y145)/2 -> 21.5 | AF145: =(MAX($W145:$AA145)-Z145)/2 -> 0 | AG145: =(MAX($W145:$AA145)-AA145)/2 -> 21
A146: 2011-08-21 | B146: 1 | C146: 76 | D146: 52 | F146: -1 | G146: 57 | H146: 70 | J146: -1 | K146: 60 | L146: 66 | N146: -1 | O146: 81 | P146: 44 | R146: 1 | S146: 61 | T146: 64 | W146: =C146-D146 -> 24 | X146: =G146-H146 -> -13 | Y146: =K146-L146 -> -6 | Z146: =O146-P146 -> 37 | AA146: =S146-T146 -> -3 | AC146: =(MAX($W146:$AA146)-W146)/2 -> 6.5 | AD146: =(MAX($W146:$AA146)-X146)/2 -> 25 | AE146: =(MAX($W146:$AA146)-Y146)/2 -> 21.5 | AF146: =(MAX($W146:$AA146)-Z146)/2 -> 0 | AG146: =(MAX($W146:$AA146)-AA146)/2 -> 20
A147: 2011-08-22 | B147: 1 | C147: 77 | D147: 52 | G147: 57 | H147: 70 | J147: -1 | K147: 60 | L147: 67 | N147: 1 | O147: =O146+IF(N147>0,N147,0) -> 82 | P147: =P146-IF(N147<0,N147,0) -> 44 | R147: 1 | S147: =S146+IF(R147>0,R147,0) -> 62 | T147: =T146-IF(R147<0,R147,0) -> 64 | W147: =C147-D147 -> 25 | X147: =G147-H147 -> -13 | Y147: =K147-L147 -> -7 | Z147: =O147-P147 -> 38 | AA147: =S147-T147 -> -2 | AC147: =(MAX($W147:$AA147)-W147)/2 -> 6.5 | AD147: =(MAX($W147:$AA147)-X147)/2 -> 25.5 | AE147: =(MAX($W147:$AA147)-Y147)/2 -> 22.5 | AF147: =(MAX($W147:$AA147)-Z147)/2 -> 0 | AG147: =(MAX($W147:$AA147)-AA147)/2 -> 20
A148: 2011-08-23 | B148: 1 | C148: 78 | D148: 52 | F148: -1 | G148: 57 | H148: 71 | J148: -1 | K148: 60 | L148: 68 | N148: 1 | O148: 83 | P148: 44 | R148: -1 | S148: 62 | T148: 65 | W148: =C148-D148 -> 26 | X148: =G148-H148 -> -14 | Y148: =K148-L148 -> -8 | Z148: =O148-P148 -> 39 | AA148: =S148-T148 -> -3 | AC148: =(MAX($W148:$AA148)-W148)/2 -> 6.5 | AD148: =(MAX($W148:$AA148)-X148)/2 -> 26.5 | AE148: =(MAX($W148:$AA148)-Y148)/2 -> 23.5 | AF148: =(MAX($W148:$AA148)-Z148)/2 -> 0 | AG148: =(MAX($W148:$AA148)-AA148)/2 -> 21
A149: 2011-08-24 | B149: -1 | C149: 78 | D149: 53 | F149: 0 | G149: 58 | H149: 72 | J149: 1 | K149: 61 | L149: 68 | N149: -1 | O149: 83 | P149: 45 | R149: -1 | S149: 62 | T149: 66 | W149: =C149-D149 -> 25 | X149: =G149-H149 -> -14 | Y149: =K149-L149 -> -7 | Z149: =O149-P149 -> 38 | AA149: =S149-T149 -> -4 | AC149: =(MAX($W149:$AA149)-W149)/2 -> 6.5 | AD149: =(MAX($W149:$AA149)-X149)/2 -> 26 | AE149: =(MAX($W149:$AA149)-Y149)/2 -> 22.5 | AF149: =(MAX($W149:$AA149)-Z149)/2 -> 0 | AG149: =(MAX($W149:$AA149)-AA149)/2 -> 21
A150: 2011-08-25 | B150: 1 | C150: 79 | D150: 53 | G150: 58 | H150: 72 | K150: 61 | L150: 68 | O150: 83 | P150: 45 | R150: -1 | S150: 62 | T150: 67 | W150: =C150-D150 -> 26 | X150: =G150-H150 -> -14 | Y150: =K150-L150 -> -7 | Z150: =O150-P150 -> 38 | AA150: =S150-T150 -> -5 | AC150: =(MAX($W150:$AA150)-W150)/2 -> 6 | AD150: =(MAX($W150:$AA150)-X150)/2 -> 26 | AE150: =(MAX($W150:$AA150)-Y150)/2 -> 22.5 | AF150: =(MAX($W150:$AA150)-Z150)/2 -> 0 | AG150: =(MAX($W150:$AA150)-AA150)/2 -> 21.5
A151: 2011-08-26 | B151: -1 | C151: 79 | D151: 54 | F151: 1 | G151: 59 | H151: 72 | J151: 1 | K151: 62 | L151: 68 | N151: -1 | O151: 83 | P151: 46 | R151: -1 | S151: 62 | T151: 68 | W151: =C151-D151 -> 25 | X151: =G151-H151 -> -13 | Y151: =K151-L151 -> -6 | Z151: =O151-P151 -> 37 | AA151: =S151-T151 -> -6 | AC151: =(MAX($W151:$AA151)-W151)/2 -> 6 | AD151: =(MAX($W151:$AA151)-X151)/2 -> 25 | AE151: =(MAX($W151:$AA151)-Y151)/2 -> 21.5 | AF151: =(MAX($W151:$AA151)-Z151)/2 -> 0 | AG151: =(MAX($W151:$AA151)-AA151)/2 -> 21.5
A152: 2011-08-27 | C152: 79 | D152: 54 | G152: 59 | H152: 72 | K152: 62 | L152: 68 | O152: 83 | P152: 46 | R152: -1 | S152: 62 | T152: 69 | W152: =C152-D152 -> 25 | X152: =G152-H152 -> -13 | Y152: =K152-L152 -> -6 | Z152: =O152-P152 -> 37 | AA152: =S152-T152 -> -7 | AC152: =(MAX($W152:$AA152)-W152)/2 -> 6 | AD152: =(MAX($W152:$AA152)-X152)/2 -> 25 | AE152: =(MAX($W152:$AA152)-Y152)/2 -> 21.5 | AF152: =(MAX($W152:$AA152)-Z152)/2 -> 0 | AG152: =(MAX($W152:$AA152)-AA152)/2 -> 22
A153: 2011-08-28 | C153: 79 | D153: 54 | G153: 59 | H153: 72 | K153: 62 | L153: 68 | O153: 83 | P153: 46 | R153: -1 | S153: 62 | T153: 70 | W153: =C153-D153 -> 25 | X153: =G153-H153 -> -13 | Y153: =K153-L153 -> -6 | Z153: =O153-P153 -> 37 | AA153: =S153-T153 -> -8 | AC153: =(MAX($W153:$AA153)-W153)/2 -> 6 | AD153: =(MAX($W153:$AA153)-X153)/2 -> 25 | AE153: =(MAX($W153:$AA153)-Y153)/2 -> 21.5 | AF153: =(MAX($W153:$AA153)-Z153)/2 -> 0 | AG153: =(MAX($W153:$AA153)-AA153)/2 -> 22.5
A154: 2011-08-29 | C154: 79 | D154: 54 | F154: -2 | G154: 59 | H154: 74 | J154: 2 | K154: 64 | L154: 68 | N154: 1 | O154: 84 | P154: 46 | S154: 62 | T154: 70 | W154: =C154-D154 -> 25 | X154: =G154-H154 -> -15 | Y154: =K154-L154 -> -4 | Z154: =O154-P154 -> 38 | AA154: =S154-T154 -> -8 | AC154: =(MAX($W154:$AA154)-W154)/2 -> 6.5 | AD154: =(MAX($W154:$AA154)-X154)/2 -> 26.5 | AE154: =(MAX($W154:$AA154)-Y154)/2 -> 21 | AF154: =(MAX($W154:$AA154)-Z154)/2 -> 0 | AG154: =(MAX($W154:$AA154)-AA154)/2 -> 23
A155: 2011-08-30 | B155: -1 | C155: =C154+IF(B155>0,B155,0) -> 79 | D155: =D154-IF(B155<0,B155,0) -> 55 | F155: 1 | G155: 60 | H155: 74 | J155: -1 | K155: 64 | L155: 69 | N155: 1 | O155: 85 | P155: 46 | R155: 1 | S155: 63 | T155: 70 | W155: =C155-D155 -> 24 | X155: =G155-H155 -> -14 | Y155: =K155-L155 -> -5 | Z155: =O155-P155 -> 39 | AA155: =S155-T155 -> -7 | AC155: =(MAX($W155:$AA155)-W155)/2 -> 7.5 | AD155: =(MAX($W155:$AA155)-X155)/2 -> 26.5 | AE155: =(MAX($W155:$AA155)-Y155)/2 -> 22 | AF155: =(MAX($W155:$AA155)-Z155)/2 -> 0 | AG155: =(MAX($W155:$AA155)-AA155)/2 -> 23
A156: 2011-08-31 | B156: 1 | C156: 80 | D156: 55 | F156: -1 | G156: 60 | H156: 75 | J156: 1 | K156: 65 | L156: 69 | N156: 1 | O156: 86 | P156: 46 | R156: -1 | S156: 63 | T156: 71 | W156: =C156-D156 -> 25 | X156: =G156-H156 -> -15 | Y156: =K156-L156 -> -4 | Z156: =O156-P156 -> 40 | AA156: =S156-T156 -> -8 | AC156: =(MAX($W156:$AA156)-W156)/2 -> 7.5 | AD156: =(MAX($W156:$AA156)-X156)/2 -> 27.5 | AE156: =(MAX($W156:$AA156)-Y156)/2 -> 22 | AF156: =(MAX($W156:$AA156)-Z156)/2 -> 0 | AG156: =(MAX($W156:$AA156)-AA156)/2 -> 24
A157: 2011-09-01 | B157: 1 | C157: 81 | D157: 55 | F157: -1 | G157: =G156+IF(F157>0,F157,0) -> 60 | H157: =H156-IF(F157<0,F157,0) -> 76 | J157: 1 | K157: 66 | L157: 69 | N157: 1 | O157: 87 | P157: 46 | R157: -1 | S157: 63 | T157: 72 | W157: =C157-D157 -> 26 | X157: =G157-H157 -> -16 | Y157: =K157-L157 -> -3 | Z157: =O157-P157 -> 41 | AA157: =S157-T157 -> -9 | AC157: =(MAX($W157:$AA157)-W157)/2 -> 7.5 | AD157: =(MAX($W157:$AA157)-X157)/2 -> 28.5 | AE157: =(MAX($W157:$AA157)-Y157)/2 -> 22 | AF157: =(MAX($W157:$AA157)-Z157)/2 -> 0 | AG157: =(MAX($W157:$AA157)-AA157)/2 -> 25
A158: 2011-09-02 | B158: -1 | C158: 81 | D158: 56 | F158: -1 | G158: 60 | H158: 77 | J158: 1 | K158: 67 | L158: 69 | N158: 1 | O158: 88 | P158: 46 | R158: -1 | S158: 63 | T158: 73 | W158: =C158-D158 -> 25 | X158: =G158-H158 -> -17 | Y158: =K158-L158 -> -2 | Z158: =O158-P158 -> 42 | AA158: =S158-T158 -> -10 | AC158: =(MAX($W158:$AA158)-W158)/2 -> 8.5 | AD158: =(MAX($W158:$AA158)-X158)/2 -> 29.5 | AE158: =(MAX($W158:$AA158)-Y158)/2 -> 22 | AF158: =(MAX($W158:$AA158)-Z158)/2 -> 0 | AG158: =(MAX($W158:$AA158)-AA158)/2 -> 26
A159: 2011-09-03 | B159: -1 | C159: 81 | D159: 57 | F159: 1 | G159: 61 | H159: 77 | J159: -1 | K159: 67 | L159: 70 | N159: -1 | O159: 88 | P159: 47 | R159: 1 | S159: 64 | T159: 73 | W159: =C159-D159 -> 24 | X159: =G159-H159 -> -16 | Y159: =K159-L159 -> -3 | Z159: =O159-P159 -> 41 | AA159: =S159-T159 -> -9 | AC159: =(MAX($W159:$AA159)-W159)/2 -> 8.5 | AD159: =(MAX($W159:$AA159)-X159)/2 -> 28.5 | AE159: =(MAX($W159:$AA159)-Y159)/2 -> 22 | AF159: =(MAX($W159:$AA159)-Z159)/2 -> 0 | AG159: =(MAX($W159:$AA159)-AA159)/2 -> 25
A160: 2011-09-04 | B160: 1 | C160: 82 | D160: 57 | F160: 1 | G160: 62 | H160: 77 | J160: 1 | K160: 68 | L160: 70 | N160: -1 | O160: 88 | P160: 48 | R160: -1 | S160: 64 | T160: 74 | W160: =C160-D160 -> 25 | X160: =G160-H160 -> -15 | Y160: =K160-L160 -> -2 | Z160: =O160-P160 -> 40 | AA160: =S160-T160 -> -10 | AC160: =(MAX($W160:$AA160)-W160)/2 -> 7.5 | AD160: =(MAX($W160:$AA160)-X160)/2 -> 27.5 | AE160: =(MAX($W160:$AA160)-Y160)/2 -> 21 | AF160: =(MAX($W160:$AA160)-Z160)/2 -> 0 | AG160: =(MAX($W160:$AA160)-AA160)/2 -> 25
A161: 2011-09-05 | B161: -1 | C161: 82 | D161: 58 | F161: 1 | G161: 63 | H161: 77 | J161: -1 | K161: 68 | L161: 71 | N161: 1 | O161: 89 | P161: 48 | R161: 1 | S161: 65 | T161: 74 | W161: =C161-D161 -> 24 | X161: =G161-H161 -> -14 | Y161: =K161-L161 -> -3 | Z161: =O161-P161 -> 41 | AA161: =S161-T161 -> -9 | AC161: =(MAX($W161:$AA161)-W161)/2 -> 8.5 | AD161: =(MAX($W161:$AA161)-X161)/2 -> 27.5 | AE161: =(MAX($W161:$AA161)-Y161)/2 -> 22 | AF161: =(MAX($W161:$AA161)-Z161)/2 -> 0 | AG161: =(MAX($W161:$AA161)-AA161)/2 -> 25
A162: 2011-09-06 | B162: -1 | C162: 82 | D162: 59 | F162: -1 | G162: 63 | H162: 78 | J162: 1 | K162: 69 | L162: 71 | N162: 1 | O162: 90 | P162: 48 | R162: -1 | S162: 65 | T162: 75 | W162: =C162-D162 -> 23 | X162: =G162-H162 -> -15 | Y162: =K162-L162 -> -2 | Z162: =O162-P162 -> 42 | AA162: =S162-T162 -> -10 | AC162: =(MAX($W162:$AA162)-W162)/2 -> 9.5 | AD162: =(MAX($W162:$AA162)-X162)/2 -> 28.5 | AE162: =(MAX($W162:$AA162)-Y162)/2 -> 22 | AF162: =(MAX($W162:$AA162)-Z162)/2 -> 0 | AG162: =(MAX($W162:$AA162)-AA162)/2 -> 26
A163: 2011-09-07 | B163: -1 | C163: 82 | D163: 60 | F163: -1 | G163: 63 | H163: 79 | J163: 1 | K163: 70 | L163: 71 | N163: 1 | O163: 91 | P163: 48 | S163: 65 | T163: 75 | W163: =C163-D163 -> 22 | X163: =G163-H163 -> -16 | Y163: =K163-L163 -> -1 | Z163: =O163-P163 -> 43 | AA163: =S163-T163 -> -10 | AC163: =(MAX($W163:$AA163)-W163)/2 -> 10.5 | AD163: =(MAX($W163:$AA163)-X163)/2 -> 29.5 | AE163: =(MAX($W163:$AA163)-Y163)/2 -> 22 | AF163: =(MAX($W163:$AA163)-Z163)/2 -> 0 | AG163: =(MAX($W163:$AA163)-AA163)/2 -> 26.5
A164: 2011-09-08 | B164: 2 | C164: 84 | D164: 60 | G164: 63 | H164: 79 | J164: -2 | K164: 70 | L164: 73 | N164: 1 | O164: 92 | P164: 48 | R164: -1 | S164: 65 | T164: 76 | W164: =C164-D164 -> 24 | X164: =G164-H164 -> -16 | Y164: =K164-L164 -> -3 | Z164: =O164-P164 -> 44 | AA164: =S164-T164 -> -11 | AC164: =(MAX($W164:$AA164)-W164)/2 -> 10 | AD164: =(MAX($W164:$AA164)-X164)/2 -> 30 | AE164: =(MAX($W164:$AA164)-Y164)/2 -> 23.5 | AF164: =(MAX($W164:$AA164)-Z164)/2 -> 0 | AG164: =(MAX($W164:$AA164)-AA164)/2 -> 27.5
A165: 2011-09-09 | B165: -1 | C165: 84 | D165: 61 | F165: 1 | G165: 64 | H165: 79 | J165: 1 | K165: =K164+IF(J165>0,J165,0) -> 71 | L165: =L164-IF(J165<0,J165,0) -> 73 | N165: 1 | O165: 93 | P165: 48 | R165: 1 | S165: =S164+IF(R165>0,R165,0) -> 66 | T165: =T164-IF(R165<0,R165,0) -> 76 | W165: =C165-D165 -> 23 | X165: =G165-H165 -> -15 | Y165: =K165-L165 -> -2 | Z165: =O165-P165 -> 45 | AA165: =S165-T165 -> -10 | AC165: =(MAX($W165:$AA165)-W165)/2 -> 11 | AD165: =(MAX($W165:$AA165)-X165)/2 -> 30 | AE165: =(MAX($W165:$AA165)-Y165)/2 -> 23.5 | AF165: =(MAX($W165:$AA165)-Z165)/2 -> 0 | AG165: =(MAX($W165:$AA165)-AA165)/2 -> 27.5
A166: 2011-09-10 | B166: -1 | C166: =C165+IF(B166>0,B166,0) -> 84 | D166: =D165-IF(B166<0,B166,0) -> 62 | F166: 1 | G166: 65 | H166: 79 | J166: -1 | K166: 71 | L166: 74 | N166: 1 | O166: 94 | P166: 48 | R166: -1 | S166: 66 | T166: 77 | W166: =C166-D166 -> 22 | X166: =G166-H166 -> -14 | Y166: =K166-L166 -> -3 | Z166: =O166-P166 -> 46 | AA166: =S166-T166 -> -11 | AC166: =(MAX($W166:$AA166)-W166)/2 -> 12 | AD166: =(MAX($W166:$AA166)-X166)/2 -> 30 | AE166: =(MAX($W166:$AA166)-Y166)/2 -> 24.5 | AF166: =(MAX($W166:$AA166)-Z166)/2 -> 0 | AG166: =(MAX($W166:$AA166)-AA166)/2 -> 28.5
A167: 2011-09-11 | B167: -1 | C167: 84 | D167: 63 | F167: 1 | G167: =G166+IF(F167>0,F167,0) -> 66 | H167: =H166-IF(F167<0,F167,0) -> 79 | J167: -1 | K167: 71 | L167: 75 | N167: -1 | O167: =O166+IF(N167>0,N167,0) -> 94 | P167: =P166-IF(N167<0,N167,0) -> 49 | R167: 1 | S167: 67 | T167: 77 | W167: =C167-D167 -> 21 | X167: =G167-H167 -> -13 | Y167: =K167-L167 -> -4 | Z167: =O167-P167 -> 45 | AA167: =S167-T167 -> -10 | AC167: =(MAX($W167:$AA167)-W167)/2 -> 12 | AD167: =(MAX($W167:$AA167)-X167)/2 -> 29 | AE167: =(MAX($W167:$AA167)-Y167)/2 -> 24.5 | AF167: =(MAX($W167:$AA167)-Z167)/2 -> 0 | AG167: =(MAX($W167:$AA167)-AA167)/2 -> 27.5
A168: 2011-09-12 | B168: -1 | C168: 84 | D168: 64 | F168: 1 | G168: 67 | H168: 79 | J168: -1 | K168: 71 | L168: 76 | N168: -1 | O168: 94 | P168: 50 | R168: 1 | S168: 68 | T168: 77 | W168: =C168-D168 -> 20 | X168: =G168-H168 -> -12 | Y168: =K168-L168 -> -5 | Z168: =O168-P168 -> 44 | AA168: =S168-T168 -> -9 | AC168: =(MAX($W168:$AA168)-W168)/2 -> 12 | AD168: =(MAX($W168:$AA168)-X168)/2 -> 28 | AE168: =(MAX($W168:$AA168)-Y168)/2 -> 24.5 | AF168: =(MAX($W168:$AA168)-Z168)/2 -> 0 | AG168: =(MAX($W168:$AA168)-AA168)/2 -> 26.5
A169: 2011-09-13 | B169: 1 | C169: 85 | D169: 64 | F169: -1 | G169: 67 | H169: 80 | J169: -1 | K169: 71 | L169: 77 | N169: -1 | O169: 94 | P169: 51 | R169: 1 | S169: 69 | T169: 77 | W169: =C169-D169 -> 21 | X169: =G169-H169 -> -13 | Y169: =K169-L169 -> -6 | Z169: =O169-P169 -> 43 | AA169: =S169-T169 -> -8 | AC169: =(MAX($W169:$AA169)-W169)/2 -> 11 | AD169: =(MAX($W169:$AA169)-X169)/2 -> 28 | AE169: =(MAX($W169:$AA169)-Y169)/2 -> 24.5 | AF169: =(MAX($W169:$AA169)-Z169)/2 -> 0 | AG169: =(MAX($W169:$AA169)-AA169)/2 -> 25.5
A170: 2011-09-14 | B170: 1 | C170: 86 | D170: 64 | F170: -1 | G170: 67 | H170: 81 | J170: -1 | K170: 71 | L170: 78 | N170: 1 | O170: 95 | P170: 51 | R170: 1 | S170: 70 | T170: 77 | W170: =C170-D170 -> 22 | X170: =G170-H170 -> -14 | Y170: =K170-L170 -> -7 | Z170: =O170-P170 -> 44 | AA170: =S170-T170 -> -7 | AC170: =(MAX($W170:$AA170)-W170)/2 -> 11 | AD170: =(MAX($W170:$AA170)-X170)/2 -> 29 | AE170: =(MAX($W170:$AA170)-Y170)/2 -> 25.5 | AF170: =(MAX($W170:$AA170)-Z170)/2 -> 0 | AG170: =(MAX($W170:$AA170)-AA170)/2 -> 25.5
A171: 2011-09-15 | C171: 86 | D171: 64 | F171: -2 | G171: 67 | H171: 83 | J171: -1 | K171: 71 | L171: 79 | N171: 2 | O171: 97 | P171: 51 | R171: 1 | S171: 71 | T171: 77 | W171: =C171-D171 -> 22 | X171: =G171-H171 -> -16 | Y171: =K171-L171 -> -8 | Z171: =O171-P171 -> 46 | AA171: =S171-T171 -> -6 | AC171: =(MAX($W171:$AA171)-W171)/2 -> 12 | AD171: =(MAX($W171:$AA171)-X171)/2 -> 31 | AE171: =(MAX($W171:$AA171)-Y171)/2 -> 27 | AF171: =(MAX($W171:$AA171)-Z171)/2 -> 0 | AG171: =(MAX($W171:$AA171)-AA171)/2 -> 26
A172: 2011-09-16 | B172: -1 | C172: 86 | D172: 65 | F172: 1 | G172: 68 | H172: 83 | J172: 1 | K172: 72 | L172: 79 | N172: -1 | O172: 97 | P172: 52 | R172: -1 | S172: 71 | T172: 78 | W172: =C172-D172 -> 21 | X172: =G172-H172 -> -15 | Y172: =K172-L172 -> -7 | Z172: =O172-P172 -> 45 | AA172: =S172-T172 -> -7 | AC172: =(MAX($W172:$AA172)-W172)/2 -> 12 | AD172: =(MAX($W172:$AA172)-X172)/2 -> 30 | AE172: =(MAX($W172:$AA172)-Y172)/2 -> 26 | AF172: =(MAX($W172:$AA172)-Z172)/2 -> 0 | AG172: =(MAX($W172:$AA172)-AA172)/2 -> 26
A173: 2011-09-17 | B173: 1 | C173: 87 | D173: 65 | F173: 1 | G173: 69 | H173: 83 | J173: -1 | K173: 72 | L173: 80 | N173: 1 | O173: 98 | P173: 52 | R173: -1 | S173: 71 | T173: 79 | W173: =C173-D173 -> 22 | X173: =G173-H173 -> -14 | Y173: =K173-L173 -> -8 | Z173: =O173-P173 -> 46 | AA173: =S173-T173 -> -8 | AC173: =(MAX($W173:$AA173)-W173)/2 -> 12 | AD173: =(MAX($W173:$AA173)-X173)/2 -> 30 | AE173: =(MAX($W173:$AA173)-Y173)/2 -> 27 | AF173: =(MAX($W173:$AA173)-Z173)/2 -> 0 | AG173: =(MAX($W173:$AA173)-AA173)/2 -> 27
A174: 2011-09-18 | B174: -1 | C174: 87 | D174: 66 | F174: -1 | G174: 69 | H174: 84 | J174: 1 | K174: 73 | L174: 80 | N174: -1 | O174: 98 | P174: 53 | R174: 1 | S174: 72 | T174: 79 | W174: =C174-D174 -> 21 | X174: =G174-H174 -> -15 | Y174: =K174-L174 -> -7 | Z174: =O174-P174 -> 45 | AA174: =S174-T174 -> -7 | AC174: =(MAX($W174:$AA174)-W174)/2 -> 12 | AD174: =(MAX($W174:$AA174)-X174)/2 -> 30 | AE174: =(MAX($W174:$AA174)-Y174)/2 -> 26 | AF174: =(MAX($W174:$AA174)-Z174)/2 -> 0 | AG174: =(MAX($W174:$AA174)-AA174)/2 -> 26
A175: 2011-09-19 | B175: -1 | C175: 87 | D175: 67 | F175: 1 | G175: 70 | H175: 84 | K175: 73 | L175: 80 | N175: -1 | O175: 98 | P175: 54 | S175: 72 | T175: 79 | W175: =C175-D175 -> 20 | X175: =G175-H175 -> -14 | Y175: =K175-L175 -> -7 | Z175: =O175-P175 -> 44 | AA175: =S175-T175 -> -7 | AC175: =(MAX($W175:$AA175)-W175)/2 -> 12 | AD175: =(MAX($W175:$AA175)-X175)/2 -> 29 | AE175: =(MAX($W175:$AA175)-Y175)/2 -> 25.5 | AF175: =(MAX($W175:$AA175)-Z175)/2 -> 0 | AG175: =(MAX($W175:$AA175)-AA175)/2 -> 25.5
A176: 2011-09-20 | B176: 1 | C176: =C175+IF(B176>0,B176,0) -> 88 | D176: =D175-IF(B176<0,B176,0) -> 67 | F176: -1 | G176: 70 | H176: 85 | J176: -1 | K176: 73 | L176: 81 | N176: -2 | O176: 98 | P176: 56 | R176: 2 | S176: 74 | T176: 79 | W176: =C176-D176 -> 21 | X176: =G176-H176 -> -15 | Y176: =K176-L176 -> -8 | Z176: =O176-P176 -> 42 | AA176: =S176-T176 -> -5 | AC176: =(MAX($W176:$AA176)-W176)/2 -> 10.5 | AD176: =(MAX($W176:$AA176)-X176)/2 -> 28.5 | AE176: =(MAX($W176:$AA176)-Y176)/2 -> 25 | AF176: =(MAX($W176:$AA176)-Z176)/2 -> 0 | AG176: =(MAX($W176:$AA176)-AA176)/2 -> 23.5
A177: 2011-09-21 | B177: -1 | C177: 88 | D177: 68 | F177: 1 | G177: 71 | H177: 85 | J177: -1 | K177: 73 | L177: 82 | N177: -1 | O177: 98 | P177: 57 | R177: 1 | S177: 75 | T177: 79 | W177: =C177-D177 -> 20 | X177: =G177-H177 -> -14 | Y177: =K177-L177 -> -9 | Z177: =O177-P177 -> 41 | AA177: =S177-T177 -> -4 | AC177: =(MAX($W177:$AA177)-W177)/2 -> 10.5 | AD177: =(MAX($W177:$AA177)-X177)/2 -> 27.5 | AE177: =(MAX($W177:$AA177)-Y177)/2 -> 25 | AF177: =(MAX($W177:$AA177)-Z177)/2 -> 0 | AG177: =(MAX($W177:$AA177)-AA177)/2 -> 22.5
A178: 2011-09-22 | C178: 88 | D178: 68 | G178: 71 | H178: 85 | J178: 1 | K178: 74 | L178: 82 | N178: -1 | O178: 98 | P178: 58 | R178: 1 | S178: 76 | T178: 79 | W178: =C178-D178 -> 20 | X178: =G178-H178 -> -14 | Y178: =K178-L178 -> -8 | Z178: =O178-P178 -> 40 | AA178: =S178-T178 -> -3 | AC178: =(MAX($W178:$AA178)-W178)/2 -> 10 | AD178: =(MAX($W178:$AA178)-X178)/2 -> 27 | AE178: =(MAX($W178:$AA178)-Y178)/2 -> 24 | AF178: =(MAX($W178:$AA178)-Z178)/2 -> 0 | AG178: =(MAX($W178:$AA178)-AA178)/2 -> 21.5
A179: 2011-09-23 | B179: 1 | C179: 89 | D179: 68 | F179: -1 | G179: 71 | H179: 86 | K179: 74 | L179: 82 | O179: 98 | P179: 58 | R179: -1 | S179: 76 | T179: 80 | W179: =C179-D179 -> 21 | X179: =G179-H179 -> -15 | Y179: =K179-L179 -> -8 | Z179: =O179-P179 -> 40 | AA179: =S179-T179 -> -4 | AC179: =(MAX($W179:$AA179)-W179)/2 -> 9.5 | AD179: =(MAX($W179:$AA179)-X179)/2 -> 27.5 | AE179: =(MAX($W179:$AA179)-Y179)/2 -> 24 | AF179: =(MAX($W179:$AA179)-Z179)/2 -> 0 | AG179: =(MAX($W179:$AA179)-AA179)/2 -> 22
A180: 2011-09-24 | B180: -1 | C180: 89 | D180: 69 | F180: -1 | G180: 71 | H180: 87 | J180: 2 | K180: 76 | L180: 82 | N180: -2 | O180: 98 | P180: 60 | R180: 1 | S180: 77 | T180: 80 | W180: =C180-D180 -> 20 | X180: =G180-H180 -> -16 | Y180: =K180-L180 -> -6 | Z180: =O180-P180 -> 38 | AA180: =S180-T180 -> -3 | AC180: =(MAX($W180:$AA180)-W180)/2 -> 9 | AD180: =(MAX($W180:$AA180)-X180)/2 -> 27 | AE180: =(MAX($W180:$AA180)-Y180)/2 -> 22 | AF180: =(MAX($W180:$AA180)-Z180)/2 -> 0 | AG180: =(MAX($W180:$AA180)-AA180)/2 -> 20.5 | AJ180: Team | AK180: GB | AL180: %
A181: 2011-09-25 | B181: -1 | C181: 89 | D181: 70 | F181: -1 | G181: 71 | H181: 88 | J181: -1 | K181: 76 | L181: 83 | N181: 1 | O181: 99 | P181: 60 | R181: 1 | S181: 78 | T181: 80 | W181: =C181-D181 -> 19 | X181: =G181-H181 -> -17 | Y181: =K181-L181 -> -7 | Z181: =O181-P181 -> 39 | AA181: =S181-T181 -> -2 | AC181: =(MAX($W181:$AA181)-W181)/2 -> 10 | AD181: =(MAX($W181:$AA181)-X181)/2 -> 28 | AE181: =(MAX($W181:$AA181)-Y181)/2 -> 23 | AF181: =(MAX($W181:$AA181)-Z181)/2 -> 0 | AG181: =(MAX($W181:$AA181)-AA181)/2 -> 20.5 | AJ181: =AF$1 -> PHI | AK181: =AF$185 -> 0 | AL181: =AF$187 -> 0.6296296296
A182: 2011-09-26 | B182: -1 | C182: 89 | D182: 71 | F182: -1 | G182: 71 | H182: 89 | J182: -1 | K182: 76 | L182: 84 | N182: 1 | O182: 100 | P182: 60 | R182: 1 | S182: 79 | T182: 80 | W182: =C182-D182 -> 18 | X182: =G182-H182 -> -18 | Y182: =K182-L182 -> -8 | Z182: =O182-P182 -> 40 | AA182: =S182-T182 -> -1 | AC182: =(MAX($W182:$AA182)-W182)/2 -> 11 | AD182: =(MAX($W182:$AA182)-X182)/2 -> 29 | AE182: =(MAX($W182:$AA182)-Y182)/2 -> 24 | AF182: =(MAX($W182:$AA182)-Z182)/2 -> 0 | AG182: =(MAX($W182:$AA182)-AA182)/2 -> 20.5 | AJ182: =AC$1 -> ATL | AK182: =AC$185 -> 13 | AL182: =AC$187 -> 0.549382716
A183: 2011-09-27 | B183: -1 | C183: 89 | D183: 72 | F183: 1 | G183: 72 | H183: 89 | J183: -1 | K183: 76 | L183: 85 | N183: 1 | O183: 101 | P183: 60 | R183: -1 | S183: 79 | T183: 81 | W183: =C183-D183 -> 17 | X183: =G183-H183 -> -17 | Y183: =K183-L183 -> -9 | Z183: =O183-P183 -> 41 | AA183: =S183-T183 -> -2 | AC183: =(MAX($W183:$AA183)-W183)/2 -> 12 | AD183: =(MAX($W183:$AA183)-X183)/2 -> 29 | AE183: =(MAX($W183:$AA183)-Y183)/2 -> 25 | AF183: =(MAX($W183:$AA183)-Z183)/2 -> 0 | AG183: =(MAX($W183:$AA183)-AA183)/2 -> 21.5 | AJ183: =AG$1 -> WSH | AK183: =AG$185 -> 21.5 | AL183: =AG$187 -> 0.4968944099
A184: 2011-09-28 | B184: -1 | C184: 89 | D184: 73 | F184: -1 | G184: 72 | H184: 90 | J184: 1 | K184: 77 | L184: 85 | N184: 1 | O184: 102 | P184: 60 | R184: 1 | S184: 80 | T184: 81 | W184: =C184-D184 -> 16 | X184: =G184-H184 -> -18 | Y184: =K184-L184 -> -8 | Z184: =O184-P184 -> 42 | AA184: =S184-T184 -> -1 | AC184: =(MAX($W184:$AA184)-W184)/2 -> 13 | AD184: =(MAX($W184:$AA184)-X184)/2 -> 30 | AE184: =(MAX($W184:$AA184)-Y184)/2 -> 25 | AF184: =(MAX($W184:$AA184)-Z184)/2 -> 0 | AG184: =(MAX($W184:$AA184)-AA184)/2 -> 21.5 | AJ184: =AE$1 -> NYM | AK184: =AE$185 -> 25 | AL184: =AE$187 -> 0.475308642
A185: 2011-09-29 | C185: 89 | D185: 73 | G185: 72 | H185: 90 | K185: 77 | L185: 85 | O185: 102 | P185: 60 | S185: 80 | T185: 81 | W185: =C185-D185 -> 16 | X185: =G185-H185 -> -18 | Y185: =K185-L185 -> -8 | Z185: =O185-P185 -> 42 | AA185: =S185-T185 -> -1 | AC185: =(MAX($W185:$AA185)-W185)/2 -> 13 | AD185: =(MAX($W185:$AA185)-X185)/2 -> 30 | AE185: =(MAX($W185:$AA185)-Y185)/2 -> 25 | AF185: =(MAX($W185:$AA185)-Z185)/2 -> 0 | AG185: =(MAX($W185:$AA185)-AA185)/2 -> 21.5 | AJ185: =AD$1 -> FLA | AK185: =AD$185 -> 30 | AL185: =AD$187 -> 0.4444444444
AC187: =C185/(C185+D185) -> 0.549382716 | AD187: =G185/(G185+H185) -> 0.4444444444 | AE187: =K185/(K185+L185) -> 0.475308642 | AF187: =O185/(O185+P185) -> 0.6296296296 | AG187: =S185/(S185+T185) -> 0.4968944099
